{"text_format":"1","workbook":"xlsx","n_sheets":24,"sheets":["Cover Page","Facility Info","Contents","Operational Data","Operational Summary","Perf. Form 1","Energy Form 1","Permit Compliance","Improvements","Public Liasion","CO2 N2O","Residue Quality ","Water","Air (periodic)","Air (CEMS)","HCl","SO2","NOx","TOC","Particulates","CO 0.5 hourly","CO 95% 10 min","NH3","Template changes log"],"not_rendered":{"charts":8,"images":3,"macros":1,"external_links":1,"defined_names":24,"comments":0,"pivot_tables":0},"unopened":[],"bounds":{"document_bytes":16777216,"sheet_cells":100000,"rows_first":2000,"rows_last":500,"rows_between":2000,"halvings":0,"cell_chars":16384,"cell_head_chars":4096},"cells_cut":0,"cells_raw":0,"read":"whole","date_system":"1900"}

{"sheet":"Cover Page","index":0,"n_rows":53,"n_cols":14,"rows_kept":53,"cut":false,"hidden":false,"merged":[[13,13,18,15],[34,1,34,8],[0,3,5,6],[7,1,23,8],[28,1,28,8],[30,1,30,8],[32,1,32,8],[48,2,48,3],[48,6,48,8],[52,2,52,3],[36,1,36,8],[40,2,40,8],[42,2,42,4],[44,2,44,4],[46,2,46,3],[46,6,46,8]]}
[null,null,null,"Add company logo"]
[null,null,null,null,null,null,null,null,null,null,null,null,null,"Version 24.2a (for incinerators) - 27/11/24"]
[]
[null,null,null,null,null,null,null,null,null,null,null,null,null,"Note that there is another version of this template available for co-incinerators"]
[]
[]
[]
[null,"Add photo"]
[]
[]
[]
[]
[null,null,null,null,null,null,null,null,null,null,null,null,null,"Notes:"]
[null,null,null,null,null,null,null,null,null,null,null,null,null,"This template may require adjustments by individual operators to meet specific reporting requirements as defined in the site Permit(s)"]
[]
[]
[]
[]
[]
[]
[]
[]
[]
[]
[]
[]
[]
[]
[null,"Annual Performance Report 2024"]
[]
[null,"Permit EPR/XP3436WB"]
[]
[null,"SUEZ R&R Wilton 11 EfW"]
[]
[null,"other name of facility (if applicable)"]
[]
[null,"SUEZ R&R"]
[]
[null,"Year:",2024]
[]
[null,"Address:","Wilton International, Middlesbrough, TS10 4RG"]
[]
[null,"Tel: "]
[]
[null,"Email: ","paula.bakes@suez.com"]
[]
[null,"Prepared by:","Paula Bakes",null,null,"Position:","EIR Manager"]
[]
[null,"Approved by:","Alex Biggins",null,null,"Position:","Plant Manager"]
[]
[null,"Version:",2]
[]
[null,"Issue Date:"]

{"sheet":"Facility Info","index":1,"n_rows":22,"n_cols":11,"rows_kept":22,"cut":false,"hidden":false,"merged":[[4,0,17,8],[21,0,53,8],[4,10,13,13],[21,10,30,13]]}
[{"$f":"+'Cover Page'!$B$29","v":"Annual Performance Report 2024"},null,null,null,{"$f":"+'Cover Page'!$B$33","v":"SUEZ R&R Wilton 11 EfW"}]
[]
["Plant Description and Design",null,null,null,null,null,null,null,null,null,"Notes:"]
[]
["The Energy from Waste facility operates 24/7 and has a design capacity of 49.9 MW. This requires a fuel input with a maximum continuous rating of around 29.2 tonnes per hour of MSW (from Merseyside County Council and various commercial customers) with an average net calorific value of 9.8 MJ/kg. This equates to 467,200 tonnes per annum at 8000 hours operation per annum through two combustion lines. \n\nThe plant has two Lines capable of processing up to 500,000 tonnes of waste per year. Incoming waste is delivered to site by rail and bulk vehicle trucks. Rail waste is checked at SUEZ’s Knowsley Transfer station, weighed and then loaded into ISO containers before being placed onto rail carriages and transported to the EFW facility. \n\nRoad waste is weighed via weighbridge at the Wilton site, and then tipped in the traditional way in the waste reception hall.",null,null,null,null,null,null,null,null,null,"Include summary of plant design, design capacity, no. of combustion lines, electrical and heat capacity and any other general information that describes the facility, its location and purpose "]
[]
[]
[]
[]
[]
[]
[]
[]
[]
[]
[]
[]
[]
[]
["Summary of Operational Processes and Procedures"]
[]
["WASTE RECEPTION\nThe plant is designed to accept contractual waste from Merseyside County Council via rail in bespoke ISO containers. Once at the EFW plant, the containers are lifted off the rail carriages by a gantry crane and placed onto mechanical ‘tilters’ The tilters operate hydraulically and move to the edge of the waste pit waste before being tilted to a 60 degree angle, allowing the waste to fall into the waste pit.\n\nWaste is also delivered by road via Bulk Transfer Vehicles in the standard operating way. \nAir needed for combustion is drawn into the furnace from above the waste reception hall so that odour and dust do not escape from the building.\n\nBUNKER\nMixing of waste occurs as the crane driver sorts the waste looking for unsuitable wastes to be removed, and to improve the homogeneity of the incinerator feedstock. \n\nCONTROL ROOM\nThere is one control room which centralises the operation of all equipment, including the grab crane used to mix and load waste into hoppers that feeds the furnace. All on-site functions are monitored automatically and manually. Its systems verify in real time that equipment is functioning properly, continuously monitor the combustion gas, and maximise the efficiency of the entire EfW process.\n\nGRATE AND BOILER\nWaste is lifted into the feed hoppers by the crane, from here waste falls into the furnace-charging chute and then onto the grate system for incineration. The thermal energy released from the burning is used to convert water to super-heated steam. At high pressure, this steam drives a turbine to generate electricity.\n\nENERGY GENERATION\nElectricity is generated at 11kv, with an electric capacity of 49.9 MWh.  The plant also has the capability of exporting steam at 3 different pressures, 58 bar(g), 17 bar(g) and 1.4 bar(g).  Steam is exported into the Wilton International site headers for use by a number of plants on site.  Where possible the steam is taken from turbine extract to ensure maximum efficiency.\n\nBOTTOM ASH\nAsh left on the grate after incineration is carried by conveyor to a recycling facility opposite the EFW plant. Once operational (February 2017) the bottom ash recycling facility will use a magnet above the conveyor to extract ferrous material for recycling. The remaining bottom ash is processed for recycling following classification of its hazardous properties. \n\nWATER-COOLED CONDENSERS\nAfter exiting the turbine, the steam is cooled and condensed back into water through water cooled condensers. This recovered water is treated and reused in the boilers to produce more steam. The water cooled condenser is capable of taking the full load from the boiler to ensure continuous operation of the EfW Plant.\n\nEMISSION CONTROL\nThe gases from the furnace are subject to a rigorous cleaning process involving selective non-catalytic reduction (SNCR), spray absorbers, and active carbon injection. This removes oxides of nitrogen, acidic gases, dioxins, and heavy metals from the gas stream.\n\nAIR POLLUTION CONTROL RESIDUE (APCR)\nThe cleaned gas is passed through fine-fabric bag filters to remove solid particles before it is emitted through the stack. The resultant APCR residue, or fly-ash, contains particles from the incineration process, we have a semi dry lime injection system. It is stored in a sealed silo until it removed from site for disposal.\n\nEMISSIONS MONITORING\nAs they pass through the stack, the residual flue gases from the process are continuously monitored before release. Each incinerator line has and independent stack and emissions monitoring system. This data is relayed automatically to the control room.",null,null,null,null,null,null,null,null,null,"Include summary of key processes and procedures such as (but not limited to); waste reception, control rooms, grate, bed and boiler, energy & heat  generation, cooling systems, residue management, emission controls, health and safety systems, maintenance"]

{"sheet":"Contents","index":2,"n_rows":45,"n_cols":11,"rows_kept":45,"cut":false,"hidden":false,"merged":[[4,10,7,14],[8,1,8,6],[3,1,3,6],[4,1,4,6],[5,1,5,6],[6,1,6,6],[7,1,7,6],[21,1,21,6],[9,1,9,6],[10,1,10,6],[11,1,11,6],[13,1,13,6],[14,1,14,6],[15,1,15,6],[16,1,16,6],[17,1,17,6],[18,1,18,6],[19,1,19,6],[20,1,20,6],[12,1,12,6],[36,1,36,6],[22,1,22,6],[23,1,23,6],[24,1,24,6],[27,1,27,6],[28,1,28,6],[29,1,29,6],[30,1,30,6],[31,1,31,6],[32,1,32,6],[35,1,35,6],[44,0,47,9],[37,1,37,6],[38,1,38,6],[39,1,39,6],[40,1,40,6],[41,1,41,6],[42,1,42,6]]}
[{"$f":"+'Cover Page'!$B$29","v":"Annual Performance Report 2024"},null,null,null,{"$f":"+'Cover Page'!$B$33","v":"SUEZ R&R Wilton 11 EfW"}]
[]
["Contents",null,null,null,null,null,null,null,null,null,"Notes:"]
["Section","Subject",null,null,null,null,null,"Page ",null,null,"Section references and Page nos. to be inserted"]
[null,"Facility Information",null,null,null,null,null,null,null,null,"Sections and Subjects may require adjustment by individual operators to meet specific reporting requirements as defined in the sites Permit(s)"]
[null,"Operational Data"]
[null,"Operational Summary"]
[null,"Performance Form 1"]
[null,"Energy Form 1"]
[null,"Permit Compliance"]
[null,"Improvements"]
[null,"Public Liaison"]
[null,"Carbon dioxide and nitrous oxide emissions"]
[null,"Residue Quality "]
[null,"Emissions to Water"]
[null,"Emissions to Air (periodically monitored)"]
[null,"Emissions to Air (continuously monitored)"]
[null,"Hydrogen Chloride emissions"]
[null,"Sulphur Dioxide emissions"]
[null,"Oxides of Nitrogen emissions"]
[null,"Total Organic Carbon emissions"]
[null,"Particulate Matter emissions"]
[null,"Carbon Monoxide emissions"]
[null,"Ammonia emissions"]
[]
[]
["Version Control"]
["Section","Information",null,null,null,null,null,"Date"]
[]
[]
[]
[]
[]
[]
["Distribution"]
["Copy","Name, Role",null,null,null,null,null,"No."]
[]
[]
[]
[]
[]
[]
[]
[]
["This report is required under the Industrial Emissions Directive’s Article 55(2) requirements on reporting and public information on waste incineration plants and co-incineration plants, which require the operator to produce an annual report on the functioning and monitoring of the plant and make it available to the public. "]

{"sheet":"Operational Data","index":3,"n_rows":65,"n_cols":10,"rows_kept":65,"cut":false,"hidden":false,"merged":[[5,9,7,9],[52,0,56,0],[33,1,38,1],[3,1,3,2],[7,1,19,1],[23,1,26,1],[28,1,29,1],[9,9,20,9],[21,9,25,9],[22,10,22,12],[22,13,22,14],[23,10,23,12],[23,13,23,14],[19,10,19,12],[19,13,19,14],[20,10,20,12],[20,13,20,14],[21,10,21,12],[21,13,21,14]]}
[{"$f":"+'Cover Page'!$B$29","v":"Annual Performance Report 2024"},null,null,null,{"$f":"+'Cover Page'!$B$33","v":"SUEZ R&R Wilton 11 EfW"}]
[]
["Operational Data"]
["Plant Size",500,null,"tonnes pa",160,"MWth",49.9,"MWe",null,"Notes:"]
["No. of combustion lines",2,null,"No. of Turbines:",null,1,null,null,null,"* - RDF to include SRF "]
[null,null,null,null,null,null,null,null,null,"** - Combusted tonnage = tonnes delivered in period + (tonnes in bunker at start of period – tonnes in bunker at end of period), or equivalent calculation depending on plant type"]
["Waste types received","Unit","Q1","Q2","Q3","Q4","Year Total","%"]
["Household / Local Authority","tonnes",12144,24,3321,20318,{"$f":"SUM(C8:F8)","v":35807},{"$f":"IF(G8>0,G8/$G$18,\"-\")","v":7.9860205053404437E-2}]
["Commercial & Industrial ",null,4475,2499,11360,11508,{"$f":"SUM(C9:F9)","v":29842},6.6556490049534872E-2,null,"*** - CHP plants only"]
["Hazardous ",null," -   "," -   "," -   "," -   ",0,"-",null,"**** Availability Definition: 'the availability of a line is to be calculated by the number of hours the line reported Continuously Monitored emission levels to the Regulator through the calendar year divided by the total number of hours in that year. \n\nThe overall plant availability is calculated as the Mean of all lines in the plant. For clarity this includes periods of abnormal operation.'  \n\nRationale: The primary function of an Energy from Waste facility is the disposal of waste. It follows therefore that the availability of a plant is determined by the period of time a facility spends undertaking this activity."]
["Clinical",null," -   "," -   "," -   "," -   ",0,"-"]
["Waste wood (biomass) ",null," -   "," -   "," -   "," -   ",0,"-"]
["Refuse Derived Fuel * - H'hold/LA",null,103567,60548,104154,88188,{"$f":"SUM(C13:F13)","v":356457},0.79500458325806089]
["Refuse Derived Fuel *  - C&I",null,1884,2983,7081,14318,26266,5.8580951934893204E-2]
["Other [Please specify]",null," -   "," -   "," -   "," -   ",0,"-"]
["Other [Please specify]",null," -   "," -   "," -   "," -   ",0,"-"]
["Other [Please specify]",null," -   "," -   "," -   "," -   ",0,"-"]
["Total waste received",null,122069,66054,125916,134332,448371]
["Rejected Waste ",null," -   "," -   "," -   "," -   ",{"$f":"SUM(C19:F19)","v":0},{"$f":"IF(G19>0,G19/$G$18,\"-\")","v":"-"}]
["Unprocessed waste transferred out",null,15,62,7,4,{"$f":"SUM(C20:F20)","v":88},{"$f":"IF(G20>0,G20/$G$18,\"-\")","v":1.9626603861534311E-4}]
["Total waste combusted **",null,122054,65992,125909,134329,{"$f":"SUM(C21:F21)","v":448284}]
[null,null,null,null,null,null,null,null,null,"Password for protected cells\nA password has been set to prevent accidental  editing of cells with formulae. \nIf you still need to make an edit for some reason then the password = 1234"]
["Energy Usage / Export","Unit","Q1","Q2","Q3","Q4","Year Total","KWh/te"]
["Power Generated","MWh"," -   ",24912,37669,50657,{"$f":"SUM(C24:F24)","v":113238},{"$f":"IF(G24>0,G24*1000/$G$21,\"-\")","v":252.60326043311829}]
["Power Exported",null," -   ",{"$f":"SUM([1]Workings!F24:H24)","v":19305.809999999998},{"$f":"SUM([1]Workings!I24:K24)","v":31015.95},{"$f":"SUM([1]Workings!L24:N24)","v":40260.18},{"$f":"SUM(C25:F25)","v":90581.94},{"$f":"IF(G25>0,G25*1000/$G$21,\"-\")","v":202.06373638140107}]
["Power Used on site",null," -   ",5607,6653,10397,{"$f":"SUM(C26:F26)","v":22657},{"$f":"IF(G26>0,G26*1000/$G$21,\"-\")","v":50.541620936727611}]
["Power Imported",null,10310,1030,4335,721,16396,{"$f":"IF(G27>0,G27*1000/$G$21,\"-\")","v":36.575028330254931}]
["Parasitic Load","%","-",0.25600000000000001,0.26100000000000001,0.217,{"$f":"IF(G24>0,1-G25/(G24+G27),\"-\")","v":0.30124859219032041}]
["Thermal Energy Produced ***","MWh",342,186,356,363,{"$f":"SUM(C29:F29)","v":1247},{"$f":"IF(G29>0,G29*1000/$G$21,\"-\")","v":2.7817187318753289}]
["Thermal Energy Exported ***",null,167,57,110,124,458,{"$f":"IF(G30>0,G30*1000/$G$21,\"-\")","v":1.0216737603840422}]
["R1 value (if applicable)","R1"]
[]
["Waste Disposal & Recovery","Unit","Q1","Q2","Q3","Q4","Year Total","% inputs"]
["APC Residues - produced","tonnes",2511,1662,2513,2597,{"$f":"SUM(C34:F34)","v":9283},{"$f":"IF(G34>0,G34/$G$21,\"-\")","v":2.0707854842019792E-2}]
["IBA - produced",null,27188,14311,28073,27455,97027,{"$f":"IF(G35>0,G35/$G$21,\"-\")","v":0.21644091691873901}]
["Metals recycling",null,5001,2626,4938,4929,{"$f":"SUM(C36:F36)","v":17494},3.9024368480695272E-2]
["Ferrous",null,2985,1533,2851,2999,{"$f":"SUM(C37:F37)","v":10368},2.3128195518912119E-2]
["Non Ferrous",null,2010,1055,2082,1930,7077,1.5786867253794471E-2]
["Mixed Metals Skips out",null,6,37,8,4,55,1.2269008039546359E-4]
[]
["Raw Material Usage","Unit","Q1","Q2","Q3","Q4","Year Total","kg or Ltr /te"]
["Mains Water","ltrs",16423,12603,12606,12767,{"$f":"SUM(C42:F42)","v":54399},{"$f":"IF(G42>0,G42/$G$21,\"-\")","v":0.12134941242605134}]
["Other Water","ltrs",177271,142749,234798,195012,749830,{"$f":"IF(G43>0,G43/$G$21,\"-\")","v":1.672667326962372}]
["Ammonia","kgs",472900,269700,569400,588600,1900600,4.2397230327203292]
["Urea","kgs","-","-","-","-",{"$f":"SUM(C45:F45)","v":0},"-"]
["Activated Carbon","kgs",25860,13420,30140,28420,{"$f":"SUM(C46:F46)","v":97840},0.21825449937985741]
["Lime / hydrated lime","kgs",981460,767940,1193580,1129300,{"$f":"SUM(C47:F47)","v":4072280},9.0841520107788813]
["Fuel oil","ltrs",1196,10979,1164,449,{"$f":"SUM(C48:F48)","v":13788},3.0757287790775491E-2]
["Gas","MWh",3868,2852,2044,2197,{"$f":"SUM(C49:F49)","v":10961}]
["Other",null,null,null,null,null,0]
[]
["Summary ","Line/Unit","Q1","Q2","Q3","Q4","Year Total",null,"Hrs in year "]
["Availability of waste combustion by line, hrs ****",1,1971,737,2208,2194,{"$f":"SUM(C53:F53)","v":7110},{"$f":"+G53/$I$53","v":0.81164383561643838},8760]
[null,2,2184,1385,2207,2068,7844,{"$f":"+G54/$I$53","v":0.89543378995433787}]
[null,3," -   "," -   "," -   "," -   ",0,0]
[null,4," -   "," -   "," -   "," -   ",0,0]
[null,5," -   "," -   "," -   "," -   ",{"$f":"SUM(C57:F57)","v":0},0]
["Overall Availability, mean avg. of all lines, hrs",null,2078,1061,2208,2131,7478,0.85365296803652968]
["Hours of turbine operations, hrs",1,0,1305,1220.1500000000001,2061.6999999999998,4586.8500000000004,0.52361301369863023]
["Hours of turbine operations, hrs",2,null,null,null,null,0,0]
["Hours of heat / steam export",null,null,null,null,null,0,{"$f":"IF(B61>0,G60/I53,\"n/a\")","v":"n/a"}]
["Net Calorific Value of waste","MJ/kg",9.18,9.32,9.49,9.52]
["Abnormal Events","qty.",null,null,1,null,{"$f":"SUM(C63:F63)","v":1},{"$f":"IF(G63>0,\"yes\",\"no\")","v":"yes"}]
["Abnormal operation","hours",null,null,1,null,1,{"$f":"+(G64)/I53","v":1.1415525114155251E-4}]
["Permit Breaches","qty.",null,null,null,null,0,{"$f":"IF(G65>0,\"yes\",\"no\")","v":"no"}]

{"sheet":"Operational Summary","index":4,"n_rows":65,"n_cols":11,"rows_kept":65,"cut":false,"hidden":false,"merged":[[69,1,69,8],[54,10,64,13],[63,1,63,8],[64,1,64,8],[65,1,65,8],[66,1,66,8],[67,1,67,8],[60,1,60,8],[61,1,61,8],[62,1,62,8],[59,1,59,8],[55,1,55,8],[56,1,56,8],[57,1,57,8],[58,1,58,8],[68,1,68,8],[4,0,26,8],[30,0,51,8],[4,10,13,13],[30,10,39,13],[54,1,54,8],[53,1,53,8]]}
[{"$f":"+'Cover Page'!$B$29","v":"Annual Performance Report 2024"},null,null,null,{"$f":"+'Cover Page'!$B$33","v":"SUEZ R&R Wilton 11 EfW"}]
[]
["Summary of Plant Operations and Maintenance during the reporting year",null,null,null,null,null,null,null,null,null,"Notes:"]
[]
["We have had a very good year for production in 2024 with minimal lost production compared to previous years.\n\nThe turbine major service in 2023 has identified some major repairs that have required the rotor to be sent back to MAN - Oberhausen for additional works, the rotor was returned in April 2024 and installed during the planned outage.\n\nThere was then a further issue with the coupling bolts loosening whilst in operation, this brought the turbine back off in August following an unrelated trip, the vibrations due to imbalance caused a further shutdown and the coupling bolts to be re tightened by MAN causing a further 981 hours of lost production.\n\nThe planned maintenance period during 2024; the major maintenance activity which started in April was carried out to plan with Line 1 side walls boiler tube and refractory replacement being completed, statutory inspections completed as required and repair works in the FGT area carried out as required.  Generator works completed and the rotor reconnected to the turbine shaft.\n\nThe planned shutdown periods were:\nLine 1, 1st April - 31st May 2024\nLine 2, 3rd April - 2nd May 2024",null,null,null,null,null,null,null,null,null,"Include summary of key operational and/or maintenance activity undertaken in the year, such as any major component upgrades and/or replacements "]
[]
[]
[]
[]
[]
[]
[]
[]
[]
[]
[]
[]
[]
[]
[]
[]
[]
[]
[]
[]
[]
[]
[]
["Summary of Residue Handling for the reporting year"]
[]
["Residue handling system has performed well in 2024, planned repairs and maintenance carried out during the planned maintenance outage.\n\nThere was a Line 2 discharger cylinder failure in Dec which was repaired and brought back into servioce with no further issues.\n\n",null,null,null,null,null,null,null,null,null,"Include in here a summary of residue handling regimes and destinations "]
[]
[]
[]
[]
[]
[]
[]
[]
[]
[]
[]
[]
[]
[]
[]
[]
[]
[]
[]
[]
[]
[]
[{"$f":"+'Cover Page'!C39","v":2024},"Plant shut-downs"]
["Date","Reason for shut-down",null,null,null,null,null,null,null,null,"Provide a very brief reason for plant shut-down e.g. \"Shut-down prior to major outage\"; \"Emergency shut-down due to boiler tube leak\"\n\nThere is no need to include periods of hot-standby here (e.g. to clear feed chute hopper blockages).\n\nFor clinical waste incinerators which require regular shut-downs for boiler cleaning, there is no need to record these here. "]
["2024-08-01","Line 1 grate bar failure"]
["13/02/2024","Line 1 grate bar failure"]
["27/02/2024","Line 1 grate bar failure"]
["2024-02-03","Line 1 grate bar failure"]
["2024-04-05","Line 2 discharger blockage"]
["2026-01-06","Line 2 grate expansion joint failure"]
["30/09/2024","Sembcorp gas supply issue"]
["30/10/2024","Line 1 boiler trip/Discharger blockage"]
["25/11/2024","Line 2 discharger blockage"]
["27/12/2024","Line 2 discharger cylinder failure"]

{"sheet":"Perf. Form 1","index":5,"n_rows":54,"n_cols":10,"rows_kept":54,"cut":false,"hidden":false,"merged":[[9,0,9,9],[10,0,10,1],[10,2,10,3],[10,4,10,5],[10,6,10,7],[10,8,10,9],[2,0,2,4],[2,6,2,8],[3,1,3,4],[5,3,5,4],[5,6,5,7],[8,0,8,1],[8,2,8,3],[8,4,8,5],[8,6,8,7],[8,8,8,9],[11,0,11,1],[11,2,11,3],[11,4,11,5],[11,6,11,7],[11,8,11,9],[12,0,12,1],[12,2,12,3],[12,4,12,5],[12,6,12,7],[12,8,12,9],[15,0,15,1],[15,2,15,3],[15,4,15,5],[15,6,15,7],[15,8,15,9],[16,0,16,9],[13,0,13,1],[13,2,13,3],[13,4,13,5],[13,6,13,7],[13,8,13,9],[14,0,14,3],[14,4,14,5],[14,6,14,7],[14,8,14,9],[17,0,17,1],[17,2,17,3],[17,4,17,5],[17,6,17,7],[17,8,17,9],[18,0,18,1],[18,2,18,3],[18,4,18,5],[18,6,18,7],[18,8,18,9],[19,0,19,1],[19,2,19,3],[19,4,19,5],[19,6,19,7],[19,8,19,9],[20,0,20,1],[20,2,20,3],[20,4,20,5],[20,6,20,7],[20,8,20,9],[21,0,21,1],[21,2,21,3],[21,4,21,5],[21,6,21,7],[21,8,21,9],[22,0,22,3],[22,4,22,5],[22,6,22,7],[22,8,22,9],[31,0,31,3],[31,7,31,8],[32,0,32,3],[32,4,32,5],[32,7,32,8],[33,0,33,3],[33,4,33,5],[33,7,33,8],[23,0,23,3],[23,4,23,5],[23,6,23,7],[23,8,23,9],[25,0,25,9],[26,0,28,9],[36,0,36,3],[36,4,36,5],[36,7,36,8],[37,0,37,3],[37,4,37,5],[37,7,37,8],[34,0,34,3],[34,4,34,5],[34,7,34,8],[35,0,35,3],[35,4,35,5],[35,7,35,8],[47,0,47,1],[49,0,49,9],[50,0,51,9],[38,0,38,9],[39,0,40,9],[43,0,43,1],[43,2,43,9],[45,0,45,1],[46,0,46,1]]}
[{"$f":"+'Cover Page'!C39","v":2024}," Annual Reporting Performance Form 1"]
[]
[{"$f":"+'Cover Page'!B31","v":"Permit EPR/XP3436WB"},null,null,null,null,"Operator: ",{"$f":"+'Cover Page'!B37","v":"SUEZ R&R"}]
["Facility:",{"$f":"+'Cover Page'!B33:I33","v":"SUEZ R&R Wilton 11 EfW"},null,null,null,"Form:","Performance 1"]
[]
["Reporting  Period from: ",null,null,"2024-01-01",null,"to:","2024-12-01"]
[]
[{"$f":"+A1","v":2024},"Annual Reporting of Waste Disposal and Recovery"]
["Waste Description",null,"Disposal Route(s)",null,"Disposal Tonnes",null,"Recovery Tonnes",null,"% / tonne of waste incinerated"]
["1) Hazardous Wastes"]
["APC Residues",null,null,null,9808,null,null,null,{"$f":"IF((E11+G11)>0,(E11+G11)/'Operational Data'!$G$21, \"-\")","v":2.1878987427612854E-2}]
["IBA",null,null,null,null,null,null,null,{"$f":"IF((E12+G12)>0,(E12+G12)/'Operational Data'!$G$21, \"-\")","v":"-"}]
[null,null,null,null,null,null,null,null,{"$f":"IF((E13+G13)>0,(E13+G13)/'Operational Data'!$G$21, \"-\")","v":"-"}]
[null,null,null,null,null,null,null,null,{"$f":"IF((E14+G14)>0,(E14+G14)/'Operational Data'!$G$21, \"-\")","v":"-"}]
["Total Hazardous Waste",null,null,null,{"$f":"SUM(E11:F14)","v":9808},null,{"$f":"SUM(G11:H14)","v":0},null,{"$f":"IF((E15+G15)>0,(E15+G15)/'Operational Data'!$G$21, \"-\")","v":2.1878987427612854E-2}]
[]
["2) Non-Hazardous Wastes"]
["IBA",null,null,null,97027,null,null,null,{"$f":"IF((E18+G18)>0,(E18+G18)/'Operational Data'!$G$21, \"-\")","v":0.21644091691873901}]
["Ferrous Metal",null,null,null,10368,null,null,null,{"$f":"IF((E19+G19)>0,(E19+G19)/'Operational Data'!$G$21, \"-\")","v":2.3128195518912119E-2}]
["Process Water",null,null,null,null,null,null,null,{"$f":"IF((E20+G20)>0,(E20+G20)/'Operational Data'!$G$21, \"-\")","v":"-"}]
[null,null,null,null,null,null,null,null,{"$f":"IF((E21+G21)>0,(E21+G21)/'Operational Data'!$G$21, \"-\")","v":"-"}]
[null,null,null,null,null,null,null,null,{"$f":"IF((E22+G22)>0,(E22+G22)/'Operational Data'!$G$21, \"-\")","v":"-"}]
["Total Non-Hazardous Waste",null,null,null,{"$f":"SUM(E18:F22)","v":107395},null,{"$f":"SUM(G18:H22)","v":0},null,{"$f":"IF((E23+G23)>0,(E23+G23)/'Operational Data'!$G$21, \"-\")","v":0.23956911243765114}]
["TOTAL WASTE",null,null,null,{"$f":"+E23+E15","v":117203},null,{"$f":"+G23+G15","v":0},null,{"$f":"IF((E24+G24)>0,(E24+G24)/'Operational Data'!$G$21, \"-\")","v":0.26144809986526396}]
[]
["Operator’s comments :"]
[]
[]
[]
[]
[{"$f":"+A1","v":2024},"Annual Reporting of Water and Other Raw Material Usage"]
["Raw Material",null,null,null,"Usage",null,"Unit","Specific Usage",null,"Unit"]
["Mains Water",null,null,null,{"$f":"+'Operational Data'!G42","v":54399},null,"m3",{"$f":"IF(E33>0,E33/'Operational Data'!$G$21,\"-\")","v":0.12134941242605134},null,"m3/te"]
["Total Water",null,null,null,{"$f":"+'Operational Data'!G43+'Operational Data'!G42","v":804229},null,"m3",{"$f":"IF(E34>0,E34/'Operational Data'!$G$21,\"-\")","v":1.7940167393884234},null,"m3/te"]
["Urea / Ammonia",null,null,null,{"$f":"+'Operational Data'!G44","v":1900600},null,"kg",{"$f":"IF(E35>0,E35/'Operational Data'!$G$21,\"-\")","v":4.2397230327203292},null,"kg/te"]
["Activated Carbon",null,null,null,{"$f":"+'Operational Data'!G46","v":97840},null,"kg",{"$f":"IF(E36>0,E36/'Operational Data'!$G$21,\"-\")","v":0.21825449937985741},null,"kg/te"]
["Lime / hydrated lime / Sodium Bicarb.",null,null,null,{"$f":"+'Operational Data'!G47","v":4072280},null,"kg",{"$f":"IF(E37>0,E37/'Operational Data'!$G$21,\"-\")","v":9.0841520107788813},null,"kg/te"]
[]
["Operator’s comments :"]
[]
[]
[]
[{"$f":"+A31","v":2024},"Annual Reporting of other performance indicators "]
["Parameter",null,"Results by Line"]
[null,null,"A1","A2","A3","A4","A5",null,"Turbine 1","Turbine 2"]
["Operating hours for the year, hours",null,7110,7844,null,null,null,null,4587]
["Number of periods of abnormal operation, qty.",null,1]
["Cumulative hours of abnormal operation for this year, hours",null,1]
[]
["Operator’s comments :"]
[]
[]
[]
["Signed: ",null,null,null,null,null,"Date:"]

{"sheet":"Energy Form 1","index":6,"n_rows":29,"n_cols":7,"rows_kept":29,"cut":false,"hidden":false,"merged":[[2,6,2,8],[4,1,4,4],[6,3,6,4],[6,6,6,7],[8,0,8,2],[8,3,8,4],[8,6,8,8],[9,0,9,2],[9,3,9,4],[9,6,9,8],[10,0,10,2],[10,3,10,4],[10,6,10,8],[11,0,11,2],[11,3,11,4],[11,6,11,8],[12,0,12,2],[12,3,12,4],[12,6,12,8],[13,0,13,2],[13,3,13,4],[13,6,13,8],[14,0,14,2],[14,3,14,4],[14,6,14,8],[15,0,15,2],[15,3,15,4],[15,6,15,8],[17,0,17,8],[18,0,24,8]]}
[{"$f":"+'Cover Page'!C39","v":2024}," Annual Reporting of Energy Usage/Export"]
[]
[{"$f":"+'Cover Page'!B31","v":"Permit EPR/XP3436WB"},null,null,null,null,"Operator: ",{"$f":"+'Cover Page'!B37","v":"SUEZ R&R"}]
[]
["Facility:",{"$f":"+'Cover Page'!B33:I33","v":"SUEZ R&R Wilton 11 EfW"},null,null,null,"Form:","Energy 1"]
[]
["Reporting  Period from: ",null,null,{"$f":"+'Perf. Form 1'!D6:E6","v":"2024-01-01"},null,"to:",{"$f":"+'Perf. Form 1'!G6:H6","v":"2024-12-01"}]
[]
["Energy Source",null,null,"Energy Usage",null,"Unit","Specific Usage (KWh/tonne incinerated"]
["Electricity Produced",null,null,113239,null,"MWh",{"$f":"+'Operational Data'!H24","v":252.60326043311829}]
["Electricity Imported   ",null,null,16396,null,"MWh",{"$f":"+'Operational Data'!H27","v":36.575028330254931}]
["Electricity Exported",null,null,90581.94,null,"MWh",{"$f":"+'Operational Data'!H25","v":202.06373638140107}]
["Gas Oil",null,null,10961,null,"tonnes",0.02]
["Steam/hot water exported",null,null,148.19361000000001,null,"GWh",{"$f":"+'Operational Data'!H30","v":1.0216737603840422}]
[]
[]
[]
["Operator’s comments :"]
[]
[]
[]
[]
[]
[]
[]
[]
[]
[]
["Signed: ",null,null,null,null,null,"Date:"]

{"sheet":"Permit Compliance","index":7,"n_rows":30,"n_cols":12,"rows_kept":30,"cut":false,"hidden":false,"merged":[[35,4,35,8],[9,0,9,1],[9,2,9,4],[9,5,9,8],[10,0,10,1],[10,2,10,4],[10,5,10,8],[11,0,11,1],[11,2,11,4],[11,5,11,8],[12,0,12,1],[12,2,12,4],[12,5,12,8],[13,0,13,1],[13,2,13,4],[13,5,13,8],[7,0,7,1],[7,2,7,8],[8,0,8,1],[8,2,8,4],[8,5,8,8],[14,5,14,8],[15,0,15,1],[16,2,16,4],[16,5,16,8],[15,2,15,4],[15,5,15,8],[16,0,16,1],[34,1,34,3],[34,4,34,6],[34,7,34,9],[31,1,31,3],[31,4,31,6],[31,7,31,9],[32,1,32,3],[32,4,32,6],[32,7,32,9],[8,11,20,11],[28,0,28,10],[18,0,18,10],[33,1,33,3],[33,4,33,6],[33,7,33,9],[29,1,29,3],[29,4,29,6],[29,7,29,9],[30,1,30,3],[30,4,30,6],[30,7,30,9],[22,1,22,2],[23,1,23,2],[14,0,14,1],[14,2,14,4],[24,1,24,2],[25,1,25,2],[26,0,26,8],[19,7,19,8],[19,1,19,2],[19,3,19,5],[21,3,21,5],[22,3,22,5],[23,3,23,5],[24,3,24,5],[25,3,25,5],[21,1,21,2]]}
[{"$f":"+'Cover Page'!$B$29","v":"Annual Performance Report 2024"},null,null,null,{"$f":"+'Cover Page'!$B$33","v":"SUEZ R&R Wilton 11 EfW"}]
[]
["Summary of Permit Compliance"]
[]
["Compliance with permit limits for continuously monitored pollutants"]
[]
["The plant met its emission limits as shown in the table below:"]
["Substance",null,"Percentage time compliant during operationNote 1",null,null,null,null,null,null,null,null,"Notes:"]
[null,null,"Half-hourly limit",null,null,"Daily limit",null,null,null,null,null,"Note 1: Please report to 2 decimal places, i.e. xx.xx%\n\nNote 2: Please enter into this table any permit non-compliances that the EA has given a CCS score for. Please also enter any other non-compliances which you have notified to the EA (e.g. ELV exceedances) but which have not yet been assessed by the EA. There is no need to enter any notifications which were subsequently assessed by the EA not to be permit breaches.  \n\nNote 3: Please enter information here (rather than just referencing the notifications that were sent to the EA) including where relevant the incineration line reference, pollutant and value of the measured result for any ELV exceedances.   \n\n"]
["Particulates",null,1,null,null,1]
["Oxides of nitrogen",null,1,null,null,1]
["Sulphur dioxide",null,1,null,null,1]
["Carbon monoxide",null,"\n100% 95% of 10-min averages",null,null,1]
["Total organic carbon",null,1,null,null,1]
["Hydrogen chloride",null,1,null,null,1]
["Hydrogen fluoride",null,"N/A",null,null,"N/A"]
[null,null,"xx.xx %",null,null,"xx.xx %"]
[]
["Summary of non-compliances under the permit Note 2"]
["Date","Summary of non-compliance Note 3",null,"Reason ",null,null,"Measures taken to prevent reoccurrence","CCS score if applicable*"]
[null,null,null,null,null,null,null,"Impact","Root cause"]
[]
[]
[]
[]
[]
["*If the Environment Agency (EA) has given a Compliance Classification Scheme (CCS) score due to a permit non-compliance it should be entered here (CCS4 = No impact; CCS3 = Minor impact; CCS2 = Significant impact; CCS1 = Major impact). If the EA has not yet assessed a non-compliance which you have notified to them, these columns should be left blank. "]
[]
["Summary of any complaints received and actions to taken to resolve them."]
["Date","Summary of complaint [including Line/Reference]",null,null,"Reason (including whether substantiated by the operator or the EA)",null,null,"Measures taken to prevent reoccurrence"]

{"sheet":"Improvements","index":8,"n_rows":38,"n_cols":5,"rows_kept":38,"cut":false,"hidden":false,"merged":[[37,0,37,8],[38,0,47,8],[4,0,4,8],[15,0,15,8],[16,0,24,8],[26,0,26,8],[27,0,35,8],[5,0,13,9]]}
[{"$f":"+'Cover Page'!$B$29","v":"Annual Performance Report 2024"},null,null,null,{"$f":"+'Cover Page'!$B$33","v":"SUEZ R&R Wilton 11 EfW"}]
[]
["Summary of Plant Improvements"]
[]
["Summary of any efficiency improvements that have been completed within the year."]
["Improvements have been made to the Line 1 side wall boiler tube design to improve heat transfer in the first and second passes, there has been an extended level of incolnel overlaid tube fitted to the top 6.5meters in the first pass and a more robust nitrite bonded refractory tile system installed on those walls. "]
[]
[]
[]
[]
[]
[]
[]
[]
[]
["Summary of any permit improvement conditions that have been completed within the year and the resulting environmental benefits."]
[]
[]
[]
[]
[]
[]
[]
[]
[]
[]
["Summary of any changes to the plant or operating techniques which required a variation to the permit and a summary of the resulting environmental impact."]
[]
[]
[]
[]
[]
[]
[]
[]
[]
[]
["Summary of any other improvements made to the plant or planned to be made and a summary of the resulting environmental benefits."]

{"sheet":"Public Liasion","index":9,"n_rows":41,"n_cols":5,"rows_kept":41,"cut":false,"hidden":false,"merged":[[22,2,22,8],[23,2,23,8],[24,2,24,8],[25,2,25,8],[16,2,16,8],[17,2,17,8],[18,2,18,8],[19,2,19,8],[21,2,21,8],[6,2,6,8],[7,2,7,8],[8,2,8,8],[9,2,9,8],[10,2,10,8],[11,2,11,8],[12,2,12,8],[13,2,13,8],[14,2,14,8],[15,2,15,8]]}
[{"$f":"+'Cover Page'!$B$29","v":"Annual Performance Report 2024"},null,null,null,{"$f":"+'Cover Page'!$B$33","v":"SUEZ R&R Wilton 11 EfW"}]
[]
["Details of Public & Stakeholder Liaison"]
[]
["Summary of events held during the reporting year."]
["Date",null,"Description"]
["2024-01-09",null,"Wilton Valuer"]
["2024-03-04",null,"Itochu"]
["2024-03-05",null,"Technip"]
["2024-03-11",null,"SUEZ France"]
["2024-03-13",null,"EA Inspection"]
["2024-03-19",null,"TTE"]
["2024-03-20",null,"NETA training"]
["2024-04-17",null,"Quadriga Audit"]
["2024-06-20",null,"MWDA"]
["2024-06-27",null,"Cleveland Fire Brigade"]
["2024-07-04",null,"MAPP"]
["2024-07-09",null,"EA Inspection"]
["2024-07-29",null,"EA Operations Monitoring Audit"]
["2024-09-20",null,"EA IBA Audit"]
["2024-09-24",null,"Site Valuation Survey"]
["08-10th October",null,"SHEQ Audit"]
["2024-10-23",null,"Redcar and Cleveland Council"]
["2024-10-25",null,"RHI Audit"]
["2024-11-21",null,"Stokesley Engineers"]
["2024-11-26",null,"Operational Review Audit"]
[]
["List of events planned for next year"]
["Date",null,"Description"]
[]
[]
[]
[]
[]
[]
[]
[]
[]
[]
[]
["If you wish to be involved in the public liaison programme, please contact _________________"]

{"sheet":"CO2 N2O","index":10,"n_rows":25,"n_cols":6,"rows_kept":25,"cut":false,"hidden":false,"merged":[[22,2,22,3],[25,1,25,3],[16,2,16,3],[4,0,4,3],[9,0,9,3],[17,0,17,3],[13,0,13,3],[12,0,12,1],[8,2,8,3],[11,2,11,3],[19,2,19,3]]}
[{"$f":"+'Cover Page'!$B$29","v":"Annual Performance Report 2024"},null,{"$f":"+'Cover Page'!$B$33","v":"SUEZ R&R Wilton 11 EfW"}]
[]
["Carbon dioxide emissions and biogenic content of waste inputs",null,null,null,null,"Notes:"]
[]
["Carbon dioxide emissions (all types of plant)"]
[null,"Annual mass of carbon dioxide released","tonnes ",379215.81849999999]
[null,"Annual mass of carbon dioxide released per tonne of waste burned","t CO2 / t waste ",{"$f":"D6/'Operational Data'!G21","v":0.845927622890846}]
[null,"Annual mass of carbon dioxide released per MWh of energy exported","t CO2 / MWh export ",{"$f":"D6/'Operational Data'!G25","v":4.1864395761450899}]
[null,"Description of how annual carbon dioxide mass emission has been calculated. \nSee Note 1","Data supplied directly from CEMS",null,null,"Note 1: All permits require operators to continuously monitor CO2 to EN14181 and flow to BS EN 16911-2 (unless otherwise agreed in writing). Operators must therefore use the results from these instruments to calculate their annual CO2 emissions. Where an operator does not have a flow meter calibrated to BS EN 16911-2, the averaged flow measurement from that year's periodic monitoring can be used instead. If the plant does not have calibrated CO2 CEMS, a suitably justified emissions factor can be used."]
["Nitrous oxide emissions (only plants which use ammonia or urea to abate NOx emissions)"]
[null,"Annual mass emissions of nitrous oxide","tonnes N2O",0.45100000000000001]
[null,"Description of how annual nitrous oxide mass emission has been calculated\nSee Note 2","Data supplied directly from CEMS",null,null,"Note 2: All permits require operators to continuously monitor N2O to EN14181 and flow to BS EN 16911-2, unless otherwise agreed in writing. Operators must therefore use the results from these instruments to calculate their annual N2O emissions. Where an operator does not have a flow meter calibrated to BS EN 16911-2, the averaged flow measurement from periodic monitoring can be used instead. If the plant does not have calibrated N2O CEMS, data from periodic monitoring or a suitably justified emissions factor can be used instead."]
["Total annual carbon dioxide + nitrous oxide emissions. \nSee Note 3. ",null,"tonnes CO2e",{"$f":"D6+D11*265","v":379335.33350000001},null,"Note 3: Total annual carbon dioxide and nitrous oxide emissions reported as carbon dioxide equivalent where 1 tonne nitrous oxide is equivalent to 265 tonnes carbon dioxide."]
["Biogenic CO2 emissions (See Note 4)",null,null,null,null,"Note 4: Only plants combusting residual municipal waste, refuse derived fuel or solid recovered fuel need complete this section. "]
[null,"Percentage of total carbon dioxide emissions arising from biogenic waste","%",0.53290000000000004]
[null,"No. of measurements undertaken","Number",5]
[null,"Description of how percentage biogenic carbon dioxide emissions have been measured or calculated.\nSee Note 5","Assessed from results of C14 dating from samples collected through a Biogenic CO2 Analyser. Average of available results",null,null,"Note 5: The results from C14 sampling should be used if this is carried out at the plant (either via an installed sampler or from spot samples).  \nOtherwise, as an approximation (and in lieu of any more accurate metrics which may be developed in future), the measured or estimated biogenic fraction by net calorific value (see Note 6) can be assumed to be the same as the biogenic CO2 fraction of the total CO2 emissions from the plant. "]
["Biogenic fraction of waste feedstock (See Note 4)"]
[null,"Yearly average biogenic percentage of the waste by net calorific value (NCV)","%",0.41925000000000001]
[null,"Description of how biogenic percentage (by NCV) has been calculated or estimated. \nSee Note 6","Assessed from breakdown of waste composition \nfrom third-party reporting (M.E.L) and the \nrespective carbon content of each component.",null,null,"Note 6: If C14 sampling is carried out at the plant, the methodology set out in the embedded document entitled \"Renewable Energy Association Energy Content of Fuels - Description of Method\" embedded below can be used to calculate the biogenic percentage by net calorific value. Otherwise, data from waste sampling or BIOMA software can be used; or if none of these are available, an estimated figure with justification or a figure assumed on the basis of up-to-date industry data can be used. "]
[null,"Yearly average biogenic percentage of the waste by mass","%",0.47]
[null,"If waste sampling undertaken, no. of samples used to ascertain average biogenic percentages above","Number",4]
[null,"Description of how biogenic percentage (by mass) has been calculated or estimated. \nSee Note 7","Assessed from breakdown of waste composition \nfrom third-party reporting (M.E.L) and the \nrespective carbon content of each component. \n",null,null,"Note 7: Where available, data from waste sampling should be used; otherwise, an estimated figure with justification can be used, or a figure assumed on the basis of up-to-date industry data. "]
[]
[null,"Comments:"]

{"sheet":"Residue Quality ","index":11,"n_rows":36,"n_cols":6,"rows_kept":36,"cut":false,"hidden":false,"merged":[[16,0,17,1],[16,2,17,6],[18,0,19,1],[18,2,19,6],[12,0,12,6],[13,0,13,1],[13,2,13,6],[5,0,6,6],[7,0,8,6],[9,0,10,6],[14,0,15,1],[14,2,15,6],[20,0,21,1],[20,2,21,6],[22,0,23,1],[22,2,23,6],[31,3,31,4],[27,2,28,2],[28,3,28,4],[28,5,28,6],[27,3,27,6],[26,0,26,6],[36,0,41,6],[32,3,32,4],[35,0,35,6],[27,0,28,1],[29,0,29,1],[30,0,30,1],[31,0,31,1],[32,0,32,1],[29,3,29,4],[30,3,30,4],[29,5,29,6],[30,5,30,6],[31,5,31,6],[32,5,32,6],[33,0,33,6]]}
[{"$f":"+'Cover Page'!$B$29","v":"Annual Performance Report 2024"},null,null,null,{"$f":"+'Cover Page'!$B$33","v":"SUEZ R&R Wilton 11 EfW"}]
[]
["Residue Quality Monitoring Requirements"]
[]
["Summary of monitoring undertaken and compliance"]
["Quarterly IBA & APCR samples taken on Lines 1&2"]
[]
["Fortnightly hazard assessment carried out on Lines 1&2"]
[]
[]
[]
[]
["Commentary on any specific events"]
["Date & Event",null,"Description"]
[]
[]
[]
[]
[]
[]
[]
[]
[]
[]
[]
[]
["Residue Quality Monitoring Results"]
["Parameter (unit) ",null,"Limit*","Normal Operation "]
[null,null,null,"Bottom ash  ",null,"APC Residues"]
["Loss on Ignition (average %)",null,"<5%"]
["Total Organic Carbon (average %)",null,"<3%",0.96]
["No. of Assessments Undertaken",null,"---","1 sample per quarter",null,"1 sample per quarter"]
["No. of Hazardous Results",null,"---","Fortnightly hazard assessment, unless plant outage"]
["* The permit will specify a limit of either 5% loss on ignition or 3% total organic carbon. If both are measured anyway, please enter the results here, even where the limit does not apply. "]
[]
["Comments :"]

{"sheet":"Water","index":12,"n_rows":23,"n_cols":9,"rows_kept":23,"cut":false,"hidden":false,"merged":[[5,0,6,8],[7,0,8,8],[9,0,10,8],[12,0,12,8],[13,0,13,1],[13,2,13,8],[21,0,21,8],[22,0,22,2],[22,3,22,4],[14,0,15,1],[14,2,15,8],[16,0,17,1],[16,2,17,8],[18,0,19,1],[18,2,19,8],[23,0,23,2],[23,3,23,4],[24,0,24,2],[24,3,24,4],[25,0,25,2],[25,3,25,4],[29,0,29,2],[29,3,29,4],[26,0,26,2],[26,3,26,4],[27,0,27,2],[27,3,27,4],[28,0,28,2],[28,3,28,4]]}
[{"$f":"+'Cover Page'!$B$29","v":"Annual Performance Report 2024"},null,null,null,{"$f":"+'Cover Page'!$B$33","v":"SUEZ R&R Wilton 11 EfW"}]
[]
["Emissions to Water"]
[]
["Summary of monitoring undertaken and compliance"]
["None carried out "]
[]
[]
[]
[]
[]
[]
["Commentary on any specific events"]
["Date & Event",null,"Description"]
[]
[]
[]
[]
[]
[]
[]
["Emissions to Water / Sewer"]
["Parameter",null,null,"Monitoring Frequency",null,"Limit","Target","Max.","Average"]

{"sheet":"Air (periodic)","index":13,"n_rows":39,"n_cols":11,"rows_kept":39,"cut":false,"hidden":false,"merged":[[5,10,8,13],[9,10,11,13],[8,0,8,9],[5,0,6,9],[11,0,11,1],[12,0,12,1],[11,3,11,4],[12,3,12,4],[9,0,10,1],[9,5,9,9],[9,3,10,4],[9,2,10,2],[16,0,16,1],[17,0,17,1],[18,0,18,1],[13,0,13,1],[14,0,14,1],[15,0,15,1],[39,0,40,9],[25,0,25,1],[26,0,26,1],[22,0,22,1],[23,0,23,1],[37,0,37,1],[27,0,27,1],[28,0,28,1],[29,0,29,1],[30,0,30,1],[31,0,31,1],[32,0,32,1],[37,3,37,4],[29,3,29,4],[30,3,30,4],[36,3,36,4],[38,0,38,9],[19,0,19,1],[20,0,20,1],[21,0,21,1],[34,3,34,4],[35,3,35,4],[33,0,33,1],[34,0,34,1],[35,0,35,1],[36,0,36,1],[24,0,24,1],[32,3,32,4],[27,3,27,4],[33,3,33,4],[19,3,19,4],[20,3,20,4],[21,3,21,4],[22,3,22,4],[23,3,23,4],[24,3,24,4],[31,3,31,4],[25,3,25,4],[26,3,26,4],[28,3,28,4],[13,10,14,12],[15,10,16,10],[15,11,16,11],[15,12,16,12],[18,3,18,4],[13,3,13,4],[14,3,14,4],[15,3,15,4],[16,3,16,4],[17,3,17,4]]}
[{"$f":"+'Cover Page'!$B$29","v":"Annual Performance Report 2024"},null,null,null,{"$f":"+'Cover Page'!$B$33","v":"SUEZ R&R Wilton 11 EfW"}]
[]
["Emissions to Air (periodically monitored)"]
[]
["Summary of monitoring undertaken, standards used and compliance",null,null,null,null,null,null,null,null,null,"Notes:"]
[null,null,null,null,null,null,null,null,null,null,"Template may require adjustment for any bespoke monitoring requirements of permit - please also check that all default ELV values, reference periods and the stated oxygen reference value match those for your plant, and edit if necessary!"]
[]
[]
["Results of emissions to air that are periodically monitored - oxygen reference 11% "]
["Substance",null,"Ref. Period","Emission Limit Value",null,"Average",null,null,null,null,"User to add additional tables as necessary, depending on whether quarterly or bi-annual reporting is required for the compliance year"]
[null,null,null,null,null,"A1","A2","A3","A4","A5"]
["Hydrogen fluoride",null,"1 hr","1 mg/m3",null,3.1E-2,0.03]
["Cd and Tl and their compounds",null,"0.5-8hrs","0.02 mg/m3",null,8.4999999999999995E-4,8.4999999999999995E-4]
["Hg and its compounds",null,"0.5-8hrs","0.02 mg/m3",null,6.4999999999999997E-4,1.415E-3]
["Sb, As, Pb, Cr, Co, Cu, Mn, Ni, V and their compounds",null,"0.5-8hrs","0.3 mg/m3",null,9.8500000000000004E-2,2.9499999999999998E-2]
["Dioxins & Furans (I-TEQ)",null,"6-8hrs","0.06 ng/m3",null,9.5E-4,2.4549999999999999E-2]
["PCBs (WHO-TEQ Humans / Mammals)",null,"6-8hrs","None set ng/m3",null,1.346E-3,5.79E-3]
["PCBs (WHO-TEQ Fish)",null,"6-8hrs","None set ng/m3",null,7.2000000000000002E-5,2.9E-4]
["PCBs (WHO-TEQ Birds)",null,"6-8hrs","None set ng/m3",null,5.3220000000000003E-3,1.5049999999999999E-2]
["Dioxins & Furans (WHO-TEQ Humans / Mammals)",null,"6-8hrs","None set ng/m3",null,9.5E-4,2.64E-2]
["Dioxins & Furans (WHO-TEQ Fish)",null,"6-8hrs","None set ng/m3",null,1E-3,2.9499999999999998E-2]
["Dioxins & Furans (WHO-TEQ Birds)",null,"6-8hrs","None set ng/m3",null,1.8E-3,4.265E-2]
["Anthanthrene",null,"6-8hrs","None set µg/m3",null,1.5E-3,1.1000000000000001E-3]
["Benzo(a)anthracene",null,"6-8hrs","None set µg/m3",null,7.4999999999999997E-3,2.5999999999999999E-3]
["Benzo(a)pyrene",null,"6-8hrs","None set µg/m3",null,3.0000000000000001E-3,1.1000000000000001E-3]
["Benzo(b)fluoranthene",null,"6-8hrs","None set µg/m3",null,4.0000000000000001E-3,2.5999999999999999E-3]
["Benzo(b)naptho(2,1-d) thiophene",null,"6-8hrs","None set µg/m3",null,1.5E-3,1.1000000000000001E-3]
["Benzo(c)phenanthrene",null,"6-8hrs","None set µg/m3",null,3.0000000000000001E-3,1.1000000000000001E-3]
["Benzo(ghi)perylene",null,"6-8hrs","None set µg/m3",null,2.5000000000000001E-3,2.3E-3]
["Benzo(k)fluoranthene",null,"6-8hrs","None set µg/m3",null,2.5000000000000001E-3,1.1000000000000001E-3]
["Cholanthrene",null,"6-8hrs","None set µg/m3",null,1.5E-3,1.1000000000000001E-3]
["Chrysene",null,"6-8hrs","None set µg/m3",null,8.9999999999999993E-3,5.1000000000000004E-3]
["Cyclopenta(cd)pyrene",null,"6-8hrs","None set µg/m3",null,4.4999999999999997E-3,2.0500000000000002E-3]
["Dibenzo(ai)pyrene",null,"6-8hrs","None set µg/m3",null,1.5E-3,1.1000000000000001E-3]
["Dibenzo(ah)anthracene",null,"6-8hrs","None set µg/m3",null,1.5E-3,1.1000000000000001E-3]
["Fluoranthene",null,"6-8hrs","None set µg/m3",null,5.5500000000000001E-2,4.4049999999999999E-2]
["Indeno(123-cd) pyrene",null,"6-8hrs","None set µg/m3",null,2E-3,1.1000000000000001E-3]
["Naphthalene",null,"6-8hrs","None set µg/m3",null,0.4,0.17069999999999999]
["Comments :"]

{"sheet":"Air (CEMS)","index":14,"n_rows":29,"n_cols":14,"rows_kept":29,"cut":false,"hidden":false,"merged":[[12,13,13,15],[14,13,15,13],[14,14,15,14],[14,15,15,15],[27,0,27,12],[29,0,30,12],[13,0,14,0],[5,0,6,12],[7,0,8,12],[10,0,10,12],[11,0,12,0],[11,2,12,2],[11,1,12,1],[11,3,11,4],[11,5,11,6],[11,7,11,8],[11,9,11,10],[11,11,11,12]]}
[{"$f":"+'Cover Page'!$B$29","v":"Annual Performance Report 2024"},null,null,null,null,null,null,null,{"$f":"+'Cover Page'!$B$33","v":"SUEZ R&R Wilton 11 EfW"}]
[]
["Emissions to Air (continuously monitored)"]
[null,null,null,null,null,null,null,null,null,null,null,null,null,"Notes:"]
["Summary of monitoring undertaken, standards used and compliance",null,null,null,null,null,null,null,null,null,null,null,null,"Template may require adjustment for any bespoke monitoring requirements of permit"]
[null,null,null,null,null,null,null,null,null,null,null,null,null,"Please check that all default ELV values match those for your plant and edit if necessary!"]
[null,null,null,null,null,null,null,null,null,null,null,null,null,"Report to 1 decimal place"]
[]
[]
[]
["Results of emissions to air that are continuously monitored (maximum and average values for each line) - oxygen reference 11%"]
["Substance","Reference Period","Emission Limit Value","A1",null,"A2",null,"A3",null,"A4",null,"A5"]
[null,null,null,"Max.","Avg.","Max.","Avg.","Max.","Avg.","Max.","Avg.","Max.","Avg."]
["Oxides of nitrogen","Daily mean","180 mg/m3 ",{"$f":"NOx!$O$19","v":177},{"$f":"NOx!$N$19","v":150.75},{"$f":"NOx!$O$34","v":222},{"$f":"NOx!$N$34","v":136.25},{"$f":"NOx!$O$49","v":0},{"$f":"NOx!$N$49","v":{"$error":"#DIV/0!"}},{"$f":"NOx!$O$64","v":0},{"$f":"NOx!$N$64","v":{"$error":"#DIV/0!"}},{"$f":"NOx!$O$79","v":0},{"$f":"NOx!$N$79","v":{"$error":"#DIV/0!"}}]
[null,"½ hourly mean","400 mg/m3 ",{"$f":"NOx!$M$19","v":387},{"$f":"NOx!$L$19","v":150.75},{"$f":"NOx!$M$34","v":866},{"$f":"NOx!$L$34","v":136.25},{"$f":"NOx!$M$49","v":0},{"$f":"NOx!$L$49","v":{"$error":"#DIV/0!"}},{"$f":"NOx!$M$64","v":0},{"$f":"NOx!$L$64","v":{"$error":"#DIV/0!"}},{"$f":"NOx!$M$79","v":0},{"$f":"NOx!$L$79","v":{"$error":"#DIV/0!"}}]
["Particulates","Daily mean","5 mg/m3",{"$f":"Particulates!$O$19","v":2},{"$f":"Particulates!$N$19","v":0.80000000000000016},{"$f":"Particulates!$O$34","v":0.8},{"$f":"Particulates!$N$34","v":0.43333333333333335},{"$f":"Particulates!$O$49","v":0},{"$f":"Particulates!$N$49","v":{"$error":"#DIV/0!"}},{"$f":"Particulates!$O$64","v":0},{"$f":"Particulates!$N$64","v":{"$error":"#DIV/0!"}},{"$f":"Particulates!$O$79","v":0},{"$f":"Particulates!$N$79","v":{"$error":"#DIV/0!"}}]
[null,"½ hourly mean","30 mg/m3 ",{"$f":"Particulates!$M$19","v":7.1},{"$f":"Particulates!$L$19","v":0.80000000000000016},{"$f":"Particulates!$M$34","v":4.3},{"$f":"Particulates!$L$34","v":0.43333333333333335},{"$f":"Particulates!$M$49","v":0},{"$f":"Particulates!$L$49","v":{"$error":"#DIV/0!"}},{"$f":"Particulates!$M$64","v":0},{"$f":"Particulates!$L$64","v":{"$error":"#DIV/0!"}},{"$f":"Particulates!$M$79","v":0},{"$f":"Particulates!$L$79","v":{"$error":"#DIV/0!"}}]
["Total Organic Carbon ","Daily mean","10 mg/m3 ",{"$f":"TOC!$O$19","v":0.7},{"$f":"TOC!$N$19","v":0.42499999999999999},{"$f":"TOC!$O$34","v":1.5},{"$f":"TOC!$N$34","v":0.74999999999999989},{"$f":"TOC!$O$49","v":0},{"$f":"TOC!$N$49","v":{"$error":"#DIV/0!"}},{"$f":"TOC!$O$64","v":0},{"$f":"TOC!$N$64","v":{"$error":"#DIV/0!"}},{"$f":"TOC!$O$79","v":0},{"$f":"TOC!$N$79","v":{"$error":"#DIV/0!"}}]
[null,"½ hourly mean","20 mg/m3 ",{"$f":"TOC!$M$19","v":267},{"$f":"TOC!$L$19","v":0.42499999999999999},{"$f":"TOC!$M$34","v":13},{"$f":"TOC!$L$34","v":0.74999999999999989},{"$f":"TOC!$M$49","v":0},{"$f":"TOC!$L$49","v":{"$error":"#DIV/0!"}},{"$f":"TOC!$M$64","v":0},{"$f":"TOC!$L$64","v":{"$error":"#DIV/0!"}},{"$f":"TOC!$M$79","v":0},{"$f":"TOC!$L$79","v":{"$error":"#DIV/0!"}}]
["Hydrogen chloride ","Daily mean","8 mg/m3 ",{"$f":"HCl!$O$19","v":7},{"$f":"HCl!$N$19","v":3.5833333333333335},{"$f":"HCl!$O$34","v":8},{"$f":"HCl!$N$34","v":5.25},{"$f":"HCl!$O$49","v":0},{"$f":"HCl!$N$49","v":{"$error":"#DIV/0!"}},{"$f":"HCl!$O$64","v":0},{"$f":"HCl!$N$64","v":{"$error":"#DIV/0!"}},{"$f":"HCl!$O$79","v":0},{"$f":"HCl!$N$79","v":{"$error":"#DIV/0!"}}]
[null,"½ hourly mean","60 mg/m3 ",{"$f":"HCl!$M$19","v":38},{"$f":"HCl!$L$19","v":3.5833333333333335},{"$f":"HCl!$M$34","v":32},{"$f":"HCl!$L$34","v":5.25},{"$f":"HCl!$M$49","v":0},{"$f":"HCl!$L$49","v":{"$error":"#DIV/0!"}},{"$f":"HCl!$M$64","v":0},{"$f":"HCl!$L$64","v":{"$error":"#DIV/0!"}},{"$f":"HCl!$M$79","v":0},{"$f":"HCl!$L$79","v":{"$error":"#DIV/0!"}}]
["Sulphur dioxide","Daily mean","40 mg/m3 ",{"$f":"'SO2'!$O$19","v":38},{"$f":"'SO2'!$N$19","v":22},{"$f":"'SO2'!$O$34","v":38},{"$f":"'SO2'!$N$34","v":26.333333333333332},{"$f":"'SO2'!$O$49","v":0},{"$f":"'SO2'!$N$49","v":{"$error":"#DIV/0!"}},{"$f":"'SO2'!$O$64","v":0},{"$f":"'SO2'!$N$64","v":{"$error":"#DIV/0!"}},{"$f":"'SO2'!$O$79","v":0},{"$f":"'SO2'!$N$79","v":{"$error":"#DIV/0!"}}]
[null,"½ hourly mean","200 mg/m3 ",{"$f":"'SO2'!$M$19","v":96},{"$f":"'SO2'!$L$19","v":22},{"$f":"'SO2'!$M$34","v":86},{"$f":"'SO2'!$L$34","v":26.333333333333332},{"$f":"'SO2'!$M$49","v":0},{"$f":"'SO2'!$L$49","v":{"$error":"#DIV/0!"}},{"$f":"'SO2'!$M$64","v":0},{"$f":"'SO2'!$L$64","v":{"$error":"#DIV/0!"}},{"$f":"'SO2'!$M$79","v":0},{"$f":"'SO2'!$L$79","v":{"$error":"#DIV/0!"}}]
["Carbon monoxide ","Daily mean","50 mg/m3 ",{"$f":"'CO 95% 10 min'!Q2","v":0},{"$f":"'CO 95% 10 min'!P22","v":8.5833333333333339},{"$f":"'CO 95% 10 min'!Q37","v":15},{"$f":"'CO 95% 10 min'!P37","v":6.416666666666667},{"$f":"'CO 95% 10 min'!Q52","v":0},{"$f":"'CO 95% 10 min'!P52","v":{"$error":"#DIV/0!"}},{"$f":"'CO 95% 10 min'!Q67","v":0},{"$f":"'CO 95% 10 min'!P67","v":{"$error":"#DIV/0!"}},{"$f":"'CO 95% 10 min'!Q82","v":0},{"$f":"'CO 95% 10 min'!P82","v":{"$error":"#DIV/0!"}}]
[null,"½ hourly mean *","100 mg/m3 *"]
[null,"95%ile 10-min avg *","150 mg/m3 *",{"$f":"'CO 95% 10 min'!M22","v":10.166666666666666},null,{"$f":"'CO 95% 10 min'!M37","v":13.75},null,{"$f":"'CO 95% 10 min'!M52","v":{"$error":"#DIV/0!"}},null,{"$f":"'CO 95% 10 min'!M67","v":{"$error":"#DIV/0!"}},null,{"$f":"'CO 95% 10 min'!M82","v":{"$error":"#DIV/0!"}}]
[" Ammonia","Daily mean","15 mg/m3 ",{"$f":"'NH3'!$O$19","v":11},{"$f":"'NH3'!$N$19","v":0.91666666666666663},{"$f":"'NH3'!$O$34","v":6},{"$f":"'NH3'!$N$34","v":0.5},{"$f":"'NH3'!$O$49","v":0},{"$f":"'NH3'!$N$49","v":{"$error":"#DIV/0!"}},{"$f":"'NH3'!$O$64","v":0},{"$f":"'NH3'!$N$64","v":{"$error":"#DIV/0!"}},{"$f":"'NH3'!$O$79","v":0},{"$f":"'NH3'!$N$79","v":{"$error":"#DIV/0!"}}]
["* = delete as appropriate, depending on whether your plant has half-hourly or 10-min CO ELVs\n"]
["Comments :"]

{"sheet":"HCl","index":15,"n_rows":79,"n_cols":17,"rows_kept":79,"cut":false,"hidden":false,"merged":[[12,16,15,18],[51,9,63,9],[66,9,78,9],[4,9,4,14],[4,1,4,3],[4,4,4,6],[48,0,51,6],[47,0,47,6],[6,9,18,9],[21,9,33,9],[36,9,48,9],[3,16,7,18],[9,16,11,18],[18,4,18,6]]}
[{"$f":"+'Cover Page'!$B$29","v":"Annual Performance Report 2024"},null,null,null,{"$f":"+'Cover Page'!$B$33","v":"SUEZ R&R Wilton 11 EfW"}]
[]
["Monitoring of Hydrogen Chloride emissions",null,null,"Whole Installation",null,null,"See  Notes in Cell Q3",null,null,{"$f":"+A3","v":"Monitoring of Hydrogen Chloride emissions"},null,null,null,"Per Combustion Line",null,null,"Notes:"]
[null,null,null,null,null,null,null,null,null,null,null,null,null,null,null,null,"User to add logic to complete Whole installation, Table A5:G18. From the data in Per Combustion Line, Table J6:O79, subject to No. of lines installed"]
[{"$f":"+'Cover Page'!C39","v":2024},"1/2 Hourly Reference Periods",null,null,"Daily Reference Periods"]
["mg/Nm3","1/2 hourly HCl ELV","Monthly mean of half-hourly averages","Highest half- hourly average","Daily HCl ELV","Monthly mean of  daily averages","Highest daily average",null,null,{"$f":"+A5","v":2024},"mg/Nm3","Monthly mean of half-hourly averages","Highest half- hourly average","Monthly mean of  daily averages","Highest daily average"]
["Jan",60,{"$f":"AVERAGE(L7,L22,L37,L52,L67)","v":4.5},{"$f":"MAX(M7,M22,M37,M52,M67)","v":12},8,{"$f":"AVERAGE(N7,N22,N37,N52,N67)","v":4.5},{"$f":"MAX(O7,O22,O37,O52,O67)","v":7},null,null,"A1","Jan",3,7,3,6]
["Feb",60,{"$f":"AVERAGE(L8,L23,L38,L53,L68)","v":4.5},{"$f":"MAX(M8,M23,M38,M53,M68)","v":11},8,{"$f":"AVERAGE(N8,N23,N38,N53,N68)","v":4.5},{"$f":"MAX(O8,O23,O38,O53,O68)","v":7},null,null,null,"Feb",3,7,3,4]
["Mar",60,4,12,8,4,7,null,null,null,"Mar",3,6,3,4,null,"Whole Installation table A5:G18:"]
["Apr",60,4,10,8,4,5,null,null,null,"Apr",4,6,4,4,null,"Mean: for 1/2 hourly and daily periods calculate mean of values across all operational combustion lines for the month"]
["May",60,2.5,10,8,2.5,7,null,null,null,"May",2,2,2,2]
["Jun",60,2.5,8,8,2.5,8,null,null,null,"Jun",2,4,2,3]
["Jul",60,4.5,24,8,4.5,8,null,null,null,"Jul",4,9,4,6,null,"Maximum: for 1/2 hourly and daily periods use the highest value across all operational combustion lines for the month"]
["Aug",60,5.5,10,8,5.5,7,null,null,null,"Aug",5,10,5,6]
["Sep",60,4.5,16,8,4.5,7,null,null,null,"Sep",3,8,3,6]
["Oct",60,6,38,8,6,7,null,null,null,"Oct",5,38,5,7]
["Nov",60,4,11,8,4,7,null,null,null,"Nov",3,8,3,5]
["Dec",60,6.5,20,8,6.5,7,null,null,null,"Dec",6,12,6,7]
[null,null,null,null,null,null,null,null,null,null,"Annual",{"$f":"AVERAGE(L7:L18)","v":3.5833333333333335},{"$f":"MAX(M7:M18)","v":38},{"$f":"AVERAGE(N7:N18)","v":3.5833333333333335},{"$f":"MAX(O7:O18)","v":7}]
[]
[null,null,null,null,null,null,null,null,null,{"$f":"+A5","v":2024},"mg/Nm3","Monthly mean of half-hourly averages","Highest half- hourly average","Monthly mean of  daily averages","Highest daily average"]
[null,null,null,null,null,null,null,null,null,"A2","Jan",6,12,6,7]
[null,null,null,null,null,null,null,null,null,null,"Feb",6,11,6,7]
[null,null,null,null,null,null,null,null,null,null,"Mar",5,12,5,7]
[null,null,null,null,null,null,null,null,null,null,"Apr",4,10,4,5]
[null,null,null,null,null,null,null,null,null,null,"May",3,10,3,7]
[null,null,null,null,null,null,null,null,null,null,"Jun",3,8,3,8]
[null,null,null,null,null,null,null,null,null,null,"Jul",5,24,5,8]
[null,null,null,null,null,null,null,null,null,null,"Aug",6,10,6,7]
[null,null,null,null,null,null,null,null,null,null,"Sep",6,16,6,7]
[null,null,null,null,null,null,null,null,null,null,"Oct",7,32,7,7]
[null,null,null,null,null,null,null,null,null,null,"Nov",5,11,5,7]
[null,null,null,null,null,null,null,null,null,null,"Dec",7,20,7,7]
[null,null,null,null,null,null,null,null,null,null,"Annual",{"$f":"AVERAGE(L22:L33)","v":5.25},{"$f":"MAX(M22:M33)","v":32},{"$f":"AVERAGE(N22:N33)","v":5.25},{"$f":"MAX(O22:O33)","v":8}]
[]
[null,null,null,null,null,null,null,null,null,{"$f":"+A5","v":2024},"mg/Nm3","Monthly mean of half-hourly averages","Highest half- hourly average","Monthly mean of  daily averages","Highest daily average"]
[null,null,null,null,null,null,null,null,null,"A3","Jan"]
[null,null,null,null,null,null,null,null,null,null,"Feb"]
[null,null,null,null,null,null,null,null,null,null,"Mar"]
[null,null,null,null,null,null,null,null,null,null,"Apr"]
[null,null,null,null,null,null,null,null,null,null,"May"]
[null,null,null,null,null,null,null,null,null,null,"Jun"]
[null,null,null,null,null,null,null,null,null,null,"Jul"]
[null,null,null,null,null,null,null,null,null,null,"Aug"]
[null,null,null,null,null,null,null,null,null,null,"Sep"]
[null,null,null,null,null,null,null,null,null,null,"Oct"]
[null,null,null,null,null,null,null,null,null,null,"Nov"]
["Comments :",null,null,null,null,null,null,null,null,null,"Dec"]
[null,null,null,null,null,null,null,null,null,null,"Annual",{"$f":"AVERAGE(L37:L48)","v":{"$error":"#DIV/0!"}},{"$f":"MAX(M37:M48)","v":0},{"$f":"AVERAGE(N37:N48)","v":{"$error":"#DIV/0!"}},{"$f":"MAX(O37:O48)","v":0}]
[]
[null,null,null,null,null,null,null,null,null,{"$f":"+A5","v":2024},"mg/Nm3","Monthly mean of half-hourly averages","Highest half- hourly average","Monthly mean of  daily averages","Highest daily average"]
[null,null,null,null,null,null,null,null,null,"A4","Jan"]
[null,null,null,null,null,null,null,null,null,null,"Feb"]
[null,null,null,null,null,null,null,null,null,null,"Mar"]
[null,null,null,null,null,null,null,null,null,null,"Apr"]
[null,null,null,null,null,null,null,null,null,null,"May"]
[null,null,null,null,null,null,null,null,null,null,"Jun"]
[null,null,null,null,null,null,null,null,null,null,"Jul"]
[null,null,null,null,null,null,null,null,null,null,"Aug"]
[null,null,null,null,null,null,null,null,null,null,"Sep"]
[null,null,null,null,null,null,null,null,null,null,"Oct"]
[null,null,null,null,null,null,null,null,null,null,"Nov"]
[null,null,null,null,null,null,null,null,null,null,"Dec"]
[null,null,null,null,null,null,null,null,null,null,"Annual",{"$f":"AVERAGE(L52:L63)","v":{"$error":"#DIV/0!"}},{"$f":"MAX(M52:M63)","v":0},{"$f":"AVERAGE(N52:N63)","v":{"$error":"#DIV/0!"}},{"$f":"MAX(O52:O63)","v":0}]
[]
[null,null,null,null,null,null,null,null,null,{"$f":"+A5","v":2024},"mg/Nm3","Monthly mean of half-hourly averages","Highest half- hourly average","Monthly mean of  daily averages","Highest daily average"]
[null,null,null,null,null,null,null,null,null,"A5","Jan"]
[null,null,null,null,null,null,null,null,null,null,"Feb"]
[null,null,null,null,null,null,null,null,null,null,"Mar"]
[null,null,null,null,null,null,null,null,null,null,"Apr"]
[null,null,null,null,null,null,null,null,null,null,"May"]
[null,null,null,null,null,null,null,null,null,null,"Jun"]
[null,null,null,null,null,null,null,null,null,null,"Jul"]
[null,null,null,null,null,null,null,null,null,null,"Aug"]
[null,null,null,null,null,null,null,null,null,null,"Sep"]
[null,null,null,null,null,null,null,null,null,null,"Oct"]
[null,null,null,null,null,null,null,null,null,null,"Nov"]
[null,null,null,null,null,null,null,null,null,null,"Dec"]
[null,null,null,null,null,null,null,null,null,null,"Annual",{"$f":"AVERAGE(L67:L78)","v":{"$error":"#DIV/0!"}},{"$f":"MAX(M67:M78)","v":0},{"$f":"AVERAGE(N67:N78)","v":{"$error":"#DIV/0!"}},{"$f":"MAX(O67:O78)","v":0}]

{"sheet":"SO2","index":16,"n_rows":79,"n_cols":17,"rows_kept":79,"cut":false,"hidden":false,"merged":[[3,16,7,18],[9,16,11,18],[12,16,15,18],[66,9,78,9],[4,1,4,3],[4,4,4,6],[4,9,4,14],[6,9,18,9],[21,9,33,9],[36,9,48,9],[47,0,47,6],[48,0,51,6],[51,9,63,9],[18,4,18,6]]}
[{"$f":"+'Cover Page'!$B$29","v":"Annual Performance Report 2024"},null,null,null,{"$f":"+'Cover Page'!$B$33","v":"SUEZ R&R Wilton 11 EfW"}]
[]
["Monitoring of Sulphur dioxide emissions",null,null,"Whole Installation",null,null,"See  Notes in Cell Q3",null,null,{"$f":"+A3","v":"Monitoring of Sulphur dioxide emissions"},null,null,null,"Per Combustion Line",null,null,"Notes:"]
[null,null,null,null,null,null,null,null,null,null,null,null,null,null,null,null,"User to add logic to complete Whole installation, Table A5:G18. From the data in Per Combustion Line, Table J6:O79, subject to No. of lines installed"]
[{"$f":"+'Cover Page'!C39","v":2024},"1/2 Hourly Reference Periods",null,null,"Daily Reference Periods"]
["mg/Nm3","1/2 hourly SO2 ELV","Monthly mean of half-hourly averages","Highest half- hourly average","Daily SO2 ELV","Monthly mean of  daily averages","Highest daily average",null,null,{"$f":"+A5","v":2024},"mg/Nm3","Monthly mean of half-hourly averages","Highest half- hourly average","Monthly mean of  daily averages","Highest daily average"]
["Jan",200,{"$f":"AVERAGE(L7,L22,L37,L52,L67)","v":27},{"$f":"MAX(M7,M22,M37,M52,M67)","v":49},40,{"$f":"AVERAGE(N7,N22,N37,N52,N67)","v":27},{"$f":"MAX(O7,O22,O37,O52,O67)","v":36},null,null,"A1","Jan",26,47,26,36]
["Feb",200,{"$f":"AVERAGE(L8,L23,L38,L53,L68)","v":28.5},{"$f":"MAX(M8,M23,M38,M53,M68)","v":79},40,{"$f":"AVERAGE(N8,N23,N38,N53,N68)","v":28.5},{"$f":"MAX(O8,O23,O38,O53,O68)","v":36},null,null,null,"Feb",28,63,28,36]
["Mar",200,30.5,57,40,30.5,37,null,null,null,"Mar",28,46,28,35,null,"Whole Installation table A5:G18:"]
["Apr",200,26.5,45,40,26.5,33,null,null,null,"Apr",25,33,25,25,null,"Mean: for 1/2 hourly and daily periods calculate mean of values across all operational combustion lines for the month"]
["May",200,20.5,84,40,20.5,38,null,null,null,"May",8,11,8,8]
["Jun",200,32.5,81,40,32.5,36,null,null,null,"Jun",30,65,30,36]
["Jul",200,30,87,40,30,38,null,null,null,"Jul",28,87,28,38,null,"Maximum: for 1/2 hourly and daily periods use the highest value across all operational combustion lines for the month"]
["Aug",200,22,65,40,22,35,null,null,null,"Aug",16,65,16,31]
["Sep",200,12,48,40,12,35,null,null,null,"Sep",18,48,18,35]
["Oct",200,22.5,96,40,22.5,33,null,null,null,"Oct",19,96,19,28]
["Nov",200,18,59,40,18,31,null,null,null,"Nov",19,49,19,31]
["Dec",200,20,70,40,20,25,null,null,null,"Dec",19,48,19,24]
[null,null,null,null,null,null,null,null,null,null,"Annual",{"$f":"AVERAGE(L7:L18)","v":22},{"$f":"MAX(M7:M18)","v":96},{"$f":"AVERAGE(N7:N18)","v":22},{"$f":"MAX(O7:O18)","v":38}]
[]
[null,null,null,null,null,null,null,null,null,{"$f":"+A5","v":2024},"mg/Nm3","Monthly mean of half-hourly averages","Highest half- hourly average","Monthly mean of  daily averages","Highest daily average"]
[null,null,null,null,null,null,null,null,null,"A2","Jan",28,49,28,36]
[null,null,null,null,null,null,null,null,null,null,"Feb",29,79,29,36]
[null,null,null,null,null,null,null,null,null,null,"Mar",33,57,33,37]
[null,null,null,null,null,null,null,null,null,null,"Apr",28,45,28,33]
[null,null,null,null,null,null,null,null,null,null,"May",33,84,33,38]
[null,null,null,null,null,null,null,null,null,null,"Jun",35,81,35,36]
[null,null,null,null,null,null,null,null,null,null,"Jul",32,72,32,36]
[null,null,null,null,null,null,null,null,null,null,"Aug",28,51,28,35]
[null,null,null,null,null,null,null,null,null,null,"Sep",6,16,6,7]
[null,null,null,null,null,null,null,null,null,null,"Oct",26,86,26,33]
[null,null,null,null,null,null,null,null,null,null,"Nov",17,59,17,25]
[null,null,null,null,null,null,null,null,null,null,"Dec",21,70,21,25]
[null,null,null,null,null,null,null,null,null,null,"Annual",{"$f":"AVERAGE(L22:L33)","v":26.333333333333332},{"$f":"MAX(M22:M33)","v":86},{"$f":"AVERAGE(N22:N33)","v":26.333333333333332},{"$f":"MAX(O22:O33)","v":38}]
[]
[null,null,null,null,null,null,null,null,null,{"$f":"+A5","v":2024},"mg/Nm3","Monthly mean of half-hourly averages","Highest half- hourly average","Monthly mean of  daily averages","Highest daily average"]
[null,null,null,null,null,null,null,null,null,"A3","Jan"]
[null,null,null,null,null,null,null,null,null,null,"Feb"]
[null,null,null,null,null,null,null,null,null,null,"Mar"]
[null,null,null,null,null,null,null,null,null,null,"Apr"]
[null,null,null,null,null,null,null,null,null,null,"May"]
[null,null,null,null,null,null,null,null,null,null,"Jun"]
[null,null,null,null,null,null,null,null,null,null,"Jul"]
[null,null,null,null,null,null,null,null,null,null,"Aug"]
[null,null,null,null,null,null,null,null,null,null,"Sep"]
[null,null,null,null,null,null,null,null,null,null,"Oct"]
[null,null,null,null,null,null,null,null,null,null,"Nov"]
["Comments :",null,null,null,null,null,null,null,null,null,"Dec"]
[null,null,null,null,null,null,null,null,null,null,"Annual",{"$f":"AVERAGE(L37:L48)","v":{"$error":"#DIV/0!"}},{"$f":"MAX(M37:M48)","v":0},{"$f":"AVERAGE(N37:N48)","v":{"$error":"#DIV/0!"}},{"$f":"MAX(O37:O48)","v":0}]
[]
[null,null,null,null,null,null,null,null,null,{"$f":"+A5","v":2024},"mg/Nm3","Monthly mean of half-hourly averages","Highest half- hourly average","Monthly mean of  daily averages","Highest daily average"]
[null,null,null,null,null,null,null,null,null,"A4","Jan"]
[null,null,null,null,null,null,null,null,null,null,"Feb"]
[null,null,null,null,null,null,null,null,null,null,"Mar"]
[null,null,null,null,null,null,null,null,null,null,"Apr"]
[null,null,null,null,null,null,null,null,null,null,"May"]
[null,null,null,null,null,null,null,null,null,null,"Jun"]
[null,null,null,null,null,null,null,null,null,null,"Jul"]
[null,null,null,null,null,null,null,null,null,null,"Aug"]
[null,null,null,null,null,null,null,null,null,null,"Sep"]
[null,null,null,null,null,null,null,null,null,null,"Oct"]
[null,null,null,null,null,null,null,null,null,null,"Nov"]
[null,null,null,null,null,null,null,null,null,null,"Dec"]
[null,null,null,null,null,null,null,null,null,null,"Annual",{"$f":"AVERAGE(L52:L63)","v":{"$error":"#DIV/0!"}},{"$f":"MAX(M52:M63)","v":0},{"$f":"AVERAGE(N52:N63)","v":{"$error":"#DIV/0!"}},{"$f":"MAX(O52:O63)","v":0}]
[]
[null,null,null,null,null,null,null,null,null,{"$f":"+A5","v":2024},"mg/Nm3","Monthly mean of half-hourly averages","Highest half- hourly average","Monthly mean of  daily averages","Highest daily average"]
[null,null,null,null,null,null,null,null,null,"A5","Jan"]
[null,null,null,null,null,null,null,null,null,null,"Feb"]
[null,null,null,null,null,null,null,null,null,null,"Mar"]
[null,null,null,null,null,null,null,null,null,null,"Apr"]
[null,null,null,null,null,null,null,null,null,null,"May"]
[null,null,null,null,null,null,null,null,null,null,"Jun"]
[null,null,null,null,null,null,null,null,null,null,"Jul"]
[null,null,null,null,null,null,null,null,null,null,"Aug"]
[null,null,null,null,null,null,null,null,null,null,"Sep"]
[null,null,null,null,null,null,null,null,null,null,"Oct"]
[null,null,null,null,null,null,null,null,null,null,"Nov"]
[null,null,null,null,null,null,null,null,null,null,"Dec"]
[null,null,null,null,null,null,null,null,null,null,"Annual",{"$f":"AVERAGE(L67:L78)","v":{"$error":"#DIV/0!"}},{"$f":"MAX(M67:M78)","v":0},{"$f":"AVERAGE(N67:N78)","v":{"$error":"#DIV/0!"}},{"$f":"MAX(O67:O78)","v":0}]

{"sheet":"NOx","index":17,"n_rows":79,"n_cols":17,"rows_kept":79,"cut":false,"hidden":false,"merged":[[3,16,7,18],[9,16,11,18],[12,16,15,18],[66,9,78,9],[4,1,4,3],[4,4,4,6],[4,9,4,14],[6,9,18,9],[21,9,33,9],[36,9,48,9],[47,0,47,6],[48,0,51,6],[51,9,63,9],[18,4,18,6]]}
[{"$f":"+'Cover Page'!$B$29","v":"Annual Performance Report 2024"},null,null,null,{"$f":"+'Cover Page'!$B$33","v":"SUEZ R&R Wilton 11 EfW"}]
[]
["Monitoring of Oxides of Nitrogen emissions",null,null,"Whole Installation",null,null,"See  Notes in Cell Q3",null,null,{"$f":"+A3","v":"Monitoring of Oxides of Nitrogen emissions"},null,null,null,"Per Combustion Line",null,null,"Notes:"]
[null,null,null,null,null,null,null,null,null,null,null,null,null,null,null,null,"User to add logic to complete Whole installation, Table A5:G18. From the data in Per Combustion Line, Table J6:O79, subject to No. of lines installed"]
[{"$f":"+'Cover Page'!C39","v":2024},"1/2 Hourly Reference Periods",null,null,"Daily Reference Periods"]
["mg/Nm3","1/2 hourly NOx ELV","Monthly mean of half-hourly averages","Highest half- hourly average","Daily NOx ELV","Monthly mean of  daily averages","Highest daily average",null,null,{"$f":"+A5","v":2024},"mg/Nm3","Monthly mean of half-hourly averages","Highest half- hourly average","Monthly mean of  daily averages","Highest daily average"]
["Jan",400,{"$f":"AVERAGE(L7,L22,L37,L52,L67)","v":148.5},{"$f":"MAX(M7,M22,M37,M52,M67)","v":218},180,{"$f":"AVERAGE(N7,N22,N37,N52,N67)","v":148.5},{"$f":"MAX(O7,O22,O37,O52,O67)","v":165},null,null,"A1","Jan",156,200,156,165]
["Feb",400,{"$f":"AVERAGE(L8,L23,L38,L53,L68)","v":140.5},{"$f":"MAX(M8,M23,M38,M53,M68)","v":286},180,{"$f":"AVERAGE(N8,N23,N38,N53,N68)","v":140.5},{"$f":"MAX(O8,O23,O38,O53,O68)","v":161},null,null,null,"Feb",147,286,147,156]
["Mar",400,143.5,189,180,143.5,156,null,null,null,"Mar",155,189,155,156,null,"Whole Installation table A5:G18:"]
["Apr",400,132.5,158,180,132.5,142,null,null,null,"Apr",142,158,142,142,null,"Mean: for 1/2 hourly and daily periods calculate mean of values across all operational combustion lines for the month"]
["May",400,138.5,243,180,138.5,179,null,null,null,"May",133,142,133,133]
["Jun",400,146,237,180,146,173,null,null,null,"Jun",153,237,153,173]
["Jul",400,150,277,180,150,176,null,null,null,"Jul",156,277,156,176,null,"Maximum: for 1/2 hourly and daily periods use the highest value across all operational combustion lines for the month"]
["Aug",400,138,277,180,138,177,null,null,null,"Aug",144,277,144,177]
["Sep",400,142,866,180,142,222,null,null,null,"Sep",153,387,153,177]
["Oct",400,135.5,276,180,135.5,152,null,null,null,"Oct",146,276,146,152]
["Nov",400,149,226,180,149,174,null,null,null,"Nov",159,226,159,174]
["Dec",400,158,264,180,158,176,null,null,null,"Dec",165,264,165,176]
[null,null,null,null,null,null,null,null,null,null,"Annual",{"$f":"AVERAGE(L7:L18)","v":150.75},{"$f":"MAX(M7:M18)","v":387},{"$f":"AVERAGE(N7:N18)","v":150.75},{"$f":"MAX(O7:O18)","v":177}]
[]
[null,null,null,null,null,null,null,null,null,{"$f":"+A5","v":2024},"mg/Nm3","Monthly mean of half-hourly averages","Highest half- hourly average","Monthly mean of  daily averages","Highest daily average"]
[null,null,null,null,null,null,null,null,null,"A2","Jan",141,218,141,150]
[null,null,null,null,null,null,null,null,null,null,"Feb",134,244,134,161]
[null,null,null,null,null,null,null,null,null,null,"Mar",132,177,132,134]
[null,null,null,null,null,null,null,null,null,null,"Apr",123,155,123,129]
[null,null,null,null,null,null,null,null,null,null,"May",144,243,144,179]
[null,null,null,null,null,null,null,null,null,null,"Jun",139,210,139,161]
[null,null,null,null,null,null,null,null,null,null,"Jul",144,247,144,171]
[null,null,null,null,null,null,null,null,null,null,"Aug",132,259,132,164]
[null,null,null,null,null,null,null,null,null,null,"Sep",131,866,131,222]
[null,null,null,null,null,null,null,null,null,null,"Oct",125,260,125,137]
[null,null,null,null,null,null,null,null,null,null,"Nov",139,183,139,157]
[null,null,null,null,null,null,null,null,null,null,"Dec",151,221,151,162]
[null,null,null,null,null,null,null,null,null,null,"Annual",{"$f":"AVERAGE(L22:L33)","v":136.25},{"$f":"MAX(M22:M33)","v":866},{"$f":"AVERAGE(N22:N33)","v":136.25},{"$f":"MAX(O22:O33)","v":222}]
[]
[null,null,null,null,null,null,null,null,null,{"$f":"+A5","v":2024},"mg/Nm3","Monthly mean of half-hourly averages","Highest half- hourly average","Monthly mean of  daily averages","Highest daily average"]
[null,null,null,null,null,null,null,null,null,"A3","Jan"]
[null,null,null,null,null,null,null,null,null,null,"Feb"]
[null,null,null,null,null,null,null,null,null,null,"Mar"]
[null,null,null,null,null,null,null,null,null,null,"Apr"]
[null,null,null,null,null,null,null,null,null,null,"May"]
[null,null,null,null,null,null,null,null,null,null,"Jun"]
[null,null,null,null,null,null,null,null,null,null,"Jul"]
[null,null,null,null,null,null,null,null,null,null,"Aug"]
[null,null,null,null,null,null,null,null,null,null,"Sep"]
[null,null,null,null,null,null,null,null,null,null,"Oct"]
[null,null,null,null,null,null,null,null,null,null,"Nov"]
["Comments :",null,null,null,null,null,null,null,null,null,"Dec"]
[null,null,null,null,null,null,null,null,null,null,"Annual",{"$f":"AVERAGE(L37:L48)","v":{"$error":"#DIV/0!"}},{"$f":"MAX(M37:M48)","v":0},{"$f":"AVERAGE(N37:N48)","v":{"$error":"#DIV/0!"}},{"$f":"MAX(O37:O48)","v":0}]
[]
[null,null,null,null,null,null,null,null,null,{"$f":"+A5","v":2024},"mg/Nm3","Monthly mean of half-hourly averages","Highest half- hourly average","Monthly mean of  daily averages","Highest daily average"]
[null,null,null,null,null,null,null,null,null,"A4","Jan"]
[null,null,null,null,null,null,null,null,null,null,"Feb"]
[null,null,null,null,null,null,null,null,null,null,"Mar"]
[null,null,null,null,null,null,null,null,null,null,"Apr"]
[null,null,null,null,null,null,null,null,null,null,"May"]
[null,null,null,null,null,null,null,null,null,null,"Jun"]
[null,null,null,null,null,null,null,null,null,null,"Jul"]
[null,null,null,null,null,null,null,null,null,null,"Aug"]
[null,null,null,null,null,null,null,null,null,null,"Sep"]
[null,null,null,null,null,null,null,null,null,null,"Oct"]
[null,null,null,null,null,null,null,null,null,null,"Nov"]
[null,null,null,null,null,null,null,null,null,null,"Dec"]
[null,null,null,null,null,null,null,null,null,null,"Annual",{"$f":"AVERAGE(L52:L63)","v":{"$error":"#DIV/0!"}},{"$f":"MAX(M52:M63)","v":0},{"$f":"AVERAGE(N52:N63)","v":{"$error":"#DIV/0!"}},{"$f":"MAX(O52:O63)","v":0}]
[]
[null,null,null,null,null,null,null,null,null,{"$f":"+A5","v":2024},"mg/Nm3","Monthly mean of half-hourly averages","Highest half- hourly average","Monthly mean of  daily averages","Highest daily average"]
[null,null,null,null,null,null,null,null,null,"A5","Jan"]
[null,null,null,null,null,null,null,null,null,null,"Feb"]
[null,null,null,null,null,null,null,null,null,null,"Mar"]
[null,null,null,null,null,null,null,null,null,null,"Apr"]
[null,null,null,null,null,null,null,null,null,null,"May"]
[null,null,null,null,null,null,null,null,null,null,"Jun"]
[null,null,null,null,null,null,null,null,null,null,"Jul"]
[null,null,null,null,null,null,null,null,null,null,"Aug"]
[null,null,null,null,null,null,null,null,null,null,"Sep"]
[null,null,null,null,null,null,null,null,null,null,"Oct"]
[null,null,null,null,null,null,null,null,null,null,"Nov"]
[null,null,null,null,null,null,null,null,null,null,"Dec"]
[null,null,null,null,null,null,null,null,null,null,"Annual",{"$f":"AVERAGE(L67:L78)","v":{"$error":"#DIV/0!"}},{"$f":"MAX(M67:M78)","v":0},{"$f":"AVERAGE(N67:N78)","v":{"$error":"#DIV/0!"}},{"$f":"MAX(O67:O78)","v":0}]

{"sheet":"TOC","index":18,"n_rows":79,"n_cols":17,"rows_kept":79,"cut":false,"hidden":false,"merged":[[3,16,7,18],[9,16,11,18],[12,16,15,18],[66,9,78,9],[4,1,4,3],[4,4,4,6],[4,9,4,14],[6,9,18,9],[21,9,33,9],[36,9,48,9],[47,0,47,6],[48,0,51,6],[51,9,63,9]]}
[{"$f":"+'Cover Page'!$B$29","v":"Annual Performance Report 2024"},null,null,null,{"$f":"+'Cover Page'!$B$33","v":"SUEZ R&R Wilton 11 EfW"}]
[]
["Monitoring of Total organic carbon emissions",null,null,"Whole Installation",null,null,"See  Notes in Cell Q3",null,null,{"$f":"+A3","v":"Monitoring of Total organic carbon emissions"},null,null,null,"Per Combustion Line",null,null,"Notes:"]
[null,null,null,null,null,null,null,null,null,null,null,null,null,null,null,null,"User to add logic to complete Whole installation, Table A5:G18. From the data in Per Combustion Line, Table J6:O79, subject to No. of lines installed"]
[{"$f":"+'Cover Page'!C39","v":2024},"1/2 Hourly Reference Periods",null,null,"Daily Reference Periods"]
["mg/Nm3","1/2 hourly TOC ELV","Monthly mean of half-hourly averages","Highest half- hourly average","Daily TOC ELV","Monthly mean of  daily averages","Highest daily average",null,null,{"$f":"+A5","v":2024},"mg/Nm3","Monthly mean of half-hourly averages","Highest half- hourly average","Monthly mean of  daily averages","Highest daily average"]
["Jan",20,{"$f":"AVERAGE(L7,L22,L37,L52,L67)","v":0.44999999999999996},{"$f":"MAX(M7,M22,M37,M52,M67)","v":13},10,{"$f":"AVERAGE(N7,N22,N37,N52,N67)","v":0.44999999999999996},{"$f":"MAX(O7,O22,O37,O52,O67)","v":0.9},null,null,"A1","Jan",0.3,0.5,0.3,0.3]
["Feb",20,{"$f":"AVERAGE(L8,L23,L38,L53,L68)","v":0.44999999999999996},{"$f":"MAX(M8,M23,M38,M53,M68)","v":1.3},10,{"$f":"AVERAGE(N8,N23,N38,N53,N68)","v":0.44999999999999996},{"$f":"MAX(O8,O23,O38,O53,O68)","v":0.8},null,null,null,"Feb",0.3,0.6,0.3,0.3]
["Mar",20,0.44999999999999996,1.2,10,0.44999999999999996,0.8,null,null,null,"Mar",0.3,1.2,0.3,0.3,null,"Whole Installation table A5:G18:"]
["Apr",20,0.75,2,10,0.75,1.3,null,null,null,"Apr",0.4,0.5,0.4,0.4,null,"Mean: for 1/2 hourly and daily periods calculate mean of values across all operational combustion lines for the month"]
["May",20,0.5,5.0999999999999996,10,0.5,1.5,null,null,null,"May",0,0,0,0]
["Jun",20,0.65,5.2,10,0.65,1.4,null,null,null,"Jun",0.3,5.2,0.3,0.7]
["Jul",20,0.65,1.8,10,0.65,1.5,null,null,null,"Jul",0.2,1.2,0.2,0.4,null,"Maximum: for 1/2 hourly and daily periods use the highest value across all operational combustion lines for the month"]
["Aug",20,0.44999999999999996,9,10,0.44999999999999996,1.2,null,null,null,"Aug",0.3,9,0.3,0.5]
["Sep",20,0.44999999999999996,2.4,10,0.44999999999999996,1,null,null,null,"Sep",0.3,0.7,0.3,0.5]
["Oct",20,1.35,267,10,1.35,0.6,null,null,null,"Oct",2.1,267,2.1,0.5]
["Nov",20,0.44999999999999996,1.2,10,0.44999999999999996,0.6,null,null,null,"Nov",0.3,1,0.3,0.4]
["Dec",20,0.44999999999999996,2.7,10,0.44999999999999996,1.4,null,null,null,"Dec",0.3,0.5,0.3,0.3]
[null,null,null,null,null,null,null,null,null,null,"Annual",{"$f":"AVERAGE(L7:L18)","v":0.42499999999999999},{"$f":"MAX(M7:M18)","v":267},{"$f":"AVERAGE(N7:N18)","v":0.42499999999999999},{"$f":"MAX(O7:O18)","v":0.7}]
[]
[null,null,null,null,null,null,null,null,null,{"$f":"+A5","v":2024},"mg/Nm3","Monthly mean of half-hourly averages","Highest half- hourly average","Monthly mean of  daily averages","Highest daily average"]
[null,null,null,null,null,null,null,null,null,"A2","Jan",0.6,13,0.6,0.9]
[null,null,null,null,null,null,null,null,null,null,"Feb",0.6,1.3,0.6,0.8]
[null,null,null,null,null,null,null,null,null,null,"Mar",0.6,1.2,0.6,0.8]
[null,null,null,null,null,null,null,null,null,null,"Apr",1.1000000000000001,2,1.1000000000000001,1.3]
[null,null,null,null,null,null,null,null,null,null,"May",1,5.0999999999999996,1,1.5]
[null,null,null,null,null,null,null,null,null,null,"Jun",1,2.1,1,1.4]
[null,null,null,null,null,null,null,null,null,null,"Jul",1.1000000000000001,1.8,1.1000000000000001,1.5]
[null,null,null,null,null,null,null,null,null,null,"Aug",0.6,1.8,0.6,1.2]
[null,null,null,null,null,null,null,null,null,null,"Sep",0.6,2.4,0.6,1]
[null,null,null,null,null,null,null,null,null,null,"Oct",0.6,3.2,0.6,0.6]
[null,null,null,null,null,null,null,null,null,null,"Nov",0.6,1.2,0.6,0.6]
[null,null,null,null,null,null,null,null,null,null,"Dec",0.6,2.7,0.6,1.4]
[null,null,null,null,null,null,null,null,null,null,"Annual",{"$f":"AVERAGE(L22:L33)","v":0.74999999999999989},{"$f":"MAX(M22:M33)","v":13},{"$f":"AVERAGE(N22:N33)","v":0.74999999999999989},{"$f":"MAX(O22:O33)","v":1.5}]
[]
[null,null,null,null,null,null,null,null,null,{"$f":"+A5","v":2024},"mg/Nm3","Monthly mean of half-hourly averages","Highest half- hourly average","Monthly mean of  daily averages","Highest daily average"]
[null,null,null,null,null,null,null,null,null,"A3","Jan"]
[null,null,null,null,null,null,null,null,null,null,"Feb"]
[null,null,null,null,null,null,null,null,null,null,"Mar"]
[null,null,null,null,null,null,null,null,null,null,"Apr"]
[null,null,null,null,null,null,null,null,null,null,"May"]
[null,null,null,null,null,null,null,null,null,null,"Jun"]
[null,null,null,null,null,null,null,null,null,null,"Jul"]
[null,null,null,null,null,null,null,null,null,null,"Aug"]
[null,null,null,null,null,null,null,null,null,null,"Sep"]
[null,null,null,null,null,null,null,null,null,null,"Oct"]
[null,null,null,null,null,null,null,null,null,null,"Nov"]
["Comments :",null,null,null,null,null,null,null,null,null,"Dec"]
[null,null,null,null,null,null,null,null,null,null,"Annual",{"$f":"AVERAGE(L37:L48)","v":{"$error":"#DIV/0!"}},{"$f":"MAX(M37:M48)","v":0},{"$f":"AVERAGE(N37:N48)","v":{"$error":"#DIV/0!"}},{"$f":"MAX(O37:O48)","v":0}]
[]
[null,null,null,null,null,null,null,null,null,{"$f":"+A5","v":2024},"mg/Nm3","Monthly mean of half-hourly averages","Highest half- hourly average","Monthly mean of  daily averages","Highest daily average"]
[null,null,null,null,null,null,null,null,null,"A4","Jan"]
[null,null,null,null,null,null,null,null,null,null,"Feb"]
[null,null,null,null,null,null,null,null,null,null,"Mar"]
[null,null,null,null,null,null,null,null,null,null,"Apr"]
[null,null,null,null,null,null,null,null,null,null,"May"]
[null,null,null,null,null,null,null,null,null,null,"Jun"]
[null,null,null,null,null,null,null,null,null,null,"Jul"]
[null,null,null,null,null,null,null,null,null,null,"Aug"]
[null,null,null,null,null,null,null,null,null,null,"Sep"]
[null,null,null,null,null,null,null,null,null,null,"Oct"]
[null,null,null,null,null,null,null,null,null,null,"Nov"]
[null,null,null,null,null,null,null,null,null,null,"Dec"]
[null,null,null,null,null,null,null,null,null,null,"Annual",{"$f":"AVERAGE(L52:L63)","v":{"$error":"#DIV/0!"}},{"$f":"MAX(M52:M63)","v":0},{"$f":"AVERAGE(N52:N63)","v":{"$error":"#DIV/0!"}},{"$f":"MAX(O52:O63)","v":0}]
[]
[null,null,null,null,null,null,null,null,null,{"$f":"+A5","v":2024},"mg/Nm3","Monthly mean of half-hourly averages","Highest half- hourly average","Monthly mean of  daily averages","Highest daily average"]
[null,null,null,null,null,null,null,null,null,"A5","Jan"]
[null,null,null,null,null,null,null,null,null,null,"Feb"]
[null,null,null,null,null,null,null,null,null,null,"Mar"]
[null,null,null,null,null,null,null,null,null,null,"Apr"]
[null,null,null,null,null,null,null,null,null,null,"May"]
[null,null,null,null,null,null,null,null,null,null,"Jun"]
[null,null,null,null,null,null,null,null,null,null,"Jul"]
[null,null,null,null,null,null,null,null,null,null,"Aug"]
[null,null,null,null,null,null,null,null,null,null,"Sep"]
[null,null,null,null,null,null,null,null,null,null,"Oct"]
[null,null,null,null,null,null,null,null,null,null,"Nov"]
[null,null,null,null,null,null,null,null,null,null,"Dec"]
[null,null,null,null,null,null,null,null,null,null,"Annual",{"$f":"AVERAGE(L67:L78)","v":{"$error":"#DIV/0!"}},{"$f":"MAX(M67:M78)","v":0},{"$f":"AVERAGE(N67:N78)","v":{"$error":"#DIV/0!"}},{"$f":"MAX(O67:O78)","v":0}]

{"sheet":"Particulates","index":19,"n_rows":79,"n_cols":17,"rows_kept":79,"cut":false,"hidden":false,"merged":[[4,16,8,18],[10,16,12,18],[13,16,16,18],[66,9,78,9],[4,1,4,3],[4,4,4,6],[4,9,4,14],[6,9,18,9],[21,9,33,9],[36,9,48,9],[47,0,47,6],[48,0,51,6],[51,9,63,9],[18,4,18,6]]}
[{"$f":"+'Cover Page'!$B$29","v":"Annual Performance Report 2024"},null,null,null,{"$f":"+'Cover Page'!$B$33","v":"SUEZ R&R Wilton 11 EfW"}]
[]
["Monitoring of Particulate matter emissions",null,null,"Whole Installation",null,null,"See  Notes in Cell Q3",null,null,{"$f":"+A3","v":"Monitoring of Particulate matter emissions"},null,null,null,"Per Combustion Line",null,null,"Notes:"]
[]
[{"$f":"+'Cover Page'!C39","v":2024},"1/2 Hourly Reference Periods",null,null,"Daily Reference Periods",null,null,null,null,null,null,null,null,null,null,null,"User to add logic to complete Whole installation, Table A5:G18. From the data in Per Combustion Line, Table J6:O79, subject to No. of lines installed"]
["mg/Nm3","1/2 hourly PM ELV","Monthly mean of half-hourly averages","Highest half- hourly average","Daily PM ELV","Monthly mean of  daily averages","Highest daily average",null,null,{"$f":"+A5","v":2024},"mg/Nm3","Monthly mean of half-hourly averages","Highest half- hourly average","Monthly mean of  daily averages","Highest daily average"]
["Jan",30,{"$f":"AVERAGE(L7,L22,L37,L52,L67)","v":0.65},{"$f":"MAX(M7,M22,M37,M52,M67)","v":1.4},5,{"$f":"AVERAGE(N7,N22,N37,N52,N67)","v":0.65},{"$f":"MAX(O7,O22,O37,O52,O67)","v":0.9},null,null,"A1","Jan",0.8,1.4,0.8,0.9]
["Feb",30,{"$f":"AVERAGE(L8,L23,L38,L53,L68)","v":0.65},{"$f":"MAX(M8,M23,M38,M53,M68)","v":1.3},5,{"$f":"AVERAGE(N8,N23,N38,N53,N68)","v":0.65},{"$f":"MAX(O8,O23,O38,O53,O68)","v":0.9},null,null,null,"Feb",0.8,1.3,0.8,0.9]
["Mar",30,0.60000000000000009,1,5,0.60000000000000009,0.9,null,null,null,"Mar",0.8,1,0.8,0.9]
["Apr",30,0.75,1.3,5,0.75,1,null,null,null,"Apr",1,1.3,1,1,null,"Whole Installation table A5:G18:"]
["May",30,0.65,4.3,5,0.65,0.9,null,null,null,"May",0.9,1,0.9,0.9,null,"Mean: for 1/2 hourly and daily periods calculate mean of values across all operational combustion lines for the month"]
["Jun",30,0.55000000000000004,4.2,5,0.55000000000000004,1.6,null,null,null,"Jun",0.7,4.2,0.7,1.6]
["Jul",30,0.55000000000000004,1.3,5,0.55000000000000004,0.7,null,null,null,"Jul",0.7,1.3,0.7,0.7]
["Aug",30,0.55000000000000004,4.3,5,0.55000000000000004,0.8,null,null,null,"Aug",0.7,1.5,0.7,0.8,null,"Maximum: for 1/2 hourly and daily periods use the highest value across all operational combustion lines for the month"]
["Sep",30,0.7,4.3,5,0.7,1.1000000000000001,null,null,null,"Sep",0.9,1.3,0.9,1.1000000000000001]
["Oct",30,0.60000000000000009,7.1,5,0.60000000000000009,2,null,null,null,"Oct",0.8,7.1,0.8,2]
["Nov",30,0.55000000000000004,0.9,5,0.55000000000000004,0.8,null,null,null,"Nov",0.7,0.9,0.7,0.8]
["Dec",30,0.60000000000000009,1.1000000000000001,5,0.60000000000000009,0.8,null,null,null,"Dec",0.8,1,0.8,0.8]
[null,null,null,null,null,null,null,null,null,null,"Annual",{"$f":"AVERAGE(L7:L18)","v":0.80000000000000016},{"$f":"MAX(M7:M18)","v":7.1},{"$f":"AVERAGE(N7:N18)","v":0.80000000000000016},{"$f":"MAX(O7:O18)","v":2}]
[]
[null,null,null,null,null,null,null,null,null,{"$f":"+A5","v":2024},"mg/Nm3","Monthly mean of half-hourly averages","Highest half- hourly average","Monthly mean of  daily averages","Highest daily average"]
[null,null,null,null,null,null,null,null,null,"A2","Jan",0.5,0.6,0.5,0.5]
[null,null,null,null,null,null,null,null,null,null,"Feb",0.5,0.7,0.5,0.5]
[null,null,null,null,null,null,null,null,null,null,"Mar",0.4,0.6,0.4,0.5]
[null,null,null,null,null,null,null,null,null,null,"Apr",0.5,0.9,0.5,0.6]
[null,null,null,null,null,null,null,null,null,null,"May",0.4,4.3,0.4,0.8]
[null,null,null,null,null,null,null,null,null,null,"Jun",0.4,0.6,0.4,0.4]
[null,null,null,null,null,null,null,null,null,null,"Jul",0.4,1.2,0.4,0.5]
[null,null,null,null,null,null,null,null,null,null,"Aug",0.4,4.3,0.4,0.6]
[null,null,null,null,null,null,null,null,null,null,"Sep",0.5,4.3,0.5,0.8]
[null,null,null,null,null,null,null,null,null,null,"Oct",0.4,3.7,0.4,0.5]
[null,null,null,null,null,null,null,null,null,null,"Nov",0.4,0.6,0.4,0.5]
[null,null,null,null,null,null,null,null,null,null,"Dec",0.4,1.1000000000000001,0.4,0.5]
[null,null,null,null,null,null,null,null,null,null,"Annual",{"$f":"AVERAGE(L22:L33)","v":0.43333333333333335},{"$f":"MAX(M22:M33)","v":4.3},{"$f":"AVERAGE(N22:N33)","v":0.43333333333333335},{"$f":"MAX(O22:O33)","v":0.8}]
[]
[null,null,null,null,null,null,null,null,null,{"$f":"+A5","v":2024},"mg/Nm3","Monthly mean of half-hourly averages","Highest half- hourly average","Monthly mean of  daily averages","Highest daily average"]
[null,null,null,null,null,null,null,null,null,"A3","Jan"]
[null,null,null,null,null,null,null,null,null,null,"Feb"]
[null,null,null,null,null,null,null,null,null,null,"Mar"]
[null,null,null,null,null,null,null,null,null,null,"Apr"]
[null,null,null,null,null,null,null,null,null,null,"May"]
[null,null,null,null,null,null,null,null,null,null,"Jun"]
[null,null,null,null,null,null,null,null,null,null,"Jul"]
[null,null,null,null,null,null,null,null,null,null,"Aug"]
[null,null,null,null,null,null,null,null,null,null,"Sep"]
[null,null,null,null,null,null,null,null,null,null,"Oct"]
[null,null,null,null,null,null,null,null,null,null,"Nov"]
["Comments :",null,null,null,null,null,null,null,null,null,"Dec"]
[null,null,null,null,null,null,null,null,null,null,"Annual",{"$f":"AVERAGE(L37:L48)","v":{"$error":"#DIV/0!"}},{"$f":"MAX(M37:M48)","v":0},{"$f":"AVERAGE(N37:N48)","v":{"$error":"#DIV/0!"}},{"$f":"MAX(O37:O48)","v":0}]
[]
[null,null,null,null,null,null,null,null,null,{"$f":"+A5","v":2024},"mg/Nm3","Monthly mean of half-hourly averages","Highest half- hourly average","Monthly mean of  daily averages","Highest daily average"]
[null,null,null,null,null,null,null,null,null,"A4","Jan"]
[null,null,null,null,null,null,null,null,null,null,"Feb"]
[null,null,null,null,null,null,null,null,null,null,"Mar"]
[null,null,null,null,null,null,null,null,null,null,"Apr"]
[null,null,null,null,null,null,null,null,null,null,"May"]
[null,null,null,null,null,null,null,null,null,null,"Jun"]
[null,null,null,null,null,null,null,null,null,null,"Jul"]
[null,null,null,null,null,null,null,null,null,null,"Aug"]
[null,null,null,null,null,null,null,null,null,null,"Sep"]
[null,null,null,null,null,null,null,null,null,null,"Oct"]
[null,null,null,null,null,null,null,null,null,null,"Nov"]
[null,null,null,null,null,null,null,null,null,null,"Dec"]
[null,null,null,null,null,null,null,null,null,null,"Annual",{"$f":"AVERAGE(L52:L63)","v":{"$error":"#DIV/0!"}},{"$f":"MAX(M52:M63)","v":0},{"$f":"AVERAGE(N52:N63)","v":{"$error":"#DIV/0!"}},{"$f":"MAX(O52:O63)","v":0}]
[]
[null,null,null,null,null,null,null,null,null,{"$f":"+A5","v":2024},"mg/Nm3","Monthly mean of half-hourly averages","Highest half- hourly average","Monthly mean of  daily averages","Highest daily average"]
[null,null,null,null,null,null,null,null,null,"A5","Jan"]
[null,null,null,null,null,null,null,null,null,null,"Feb"]
[null,null,null,null,null,null,null,null,null,null,"Mar"]
[null,null,null,null,null,null,null,null,null,null,"Apr"]
[null,null,null,null,null,null,null,null,null,null,"May"]
[null,null,null,null,null,null,null,null,null,null,"Jun"]
[null,null,null,null,null,null,null,null,null,null,"Jul"]
[null,null,null,null,null,null,null,null,null,null,"Aug"]
[null,null,null,null,null,null,null,null,null,null,"Sep"]
[null,null,null,null,null,null,null,null,null,null,"Oct"]
[null,null,null,null,null,null,null,null,null,null,"Nov"]
[null,null,null,null,null,null,null,null,null,null,"Dec"]
[null,null,null,null,null,null,null,null,null,null,"Annual",{"$f":"AVERAGE(L67:L78)","v":{"$error":"#DIV/0!"}},{"$f":"MAX(M67:M78)","v":0},{"$f":"AVERAGE(N67:N78)","v":{"$error":"#DIV/0!"}},{"$f":"MAX(O67:O78)","v":0}]

{"sheet":"CO 0.5 hourly","index":20,"n_rows":82,"n_cols":17,"rows_kept":82,"cut":false,"hidden":false,"merged":[[4,0,5,6],[6,16,10,18],[12,16,14,18],[15,16,18,18],[69,9,81,9],[7,1,7,3],[7,4,7,6],[7,9,7,14],[9,9,21,9],[24,9,36,9],[39,9,51,9],[50,0,50,6],[51,0,54,6],[54,9,66,9]]}
[{"$f":"+'Cover Page'!$B$29","v":"Annual Performance Report 2024"},null,null,null,{"$f":"+'Cover Page'!$B$33","v":"SUEZ R&R Wilton 11 EfW"}]
[]
["Monitoring of Carbon Monoxide (half hourly)",null,null,"Whole Installation",null,null,"See  Notes in Cell Q3",null,null,{"$f":"+A3","v":"Monitoring of Carbon Monoxide (half hourly)"},null,null,null,"Per Combustion Line",null,null,"Notes:"]
[]
["Please complete this tab for your plant if you have 1/2 hourly CO ELVs; otherwise, leave it blank and complete the CO 95% 10 min tab"]
[]
[null,null,null,null,null,null,null,null,null,null,null,null,null,null,null,null,"User to add logic to complete Whole installation, Table A5:G18. From the data in Per Combustion Line, Table J6:O79, subject to No. of lines installed"]
[{"$f":"+'Cover Page'!C39","v":2024},"1/2 Hourly Reference Periods",null,null,"Daily Reference Periods"]
["mg/Nm3","1/2 hourly CO ELV","Monthly mean of half-hourly averages","Highest half- hourly average","Daily CO ELV","Monthly mean of  daily averages","Highest daily average",null,null,{"$f":"+A8","v":2024},"mg/Nm3","Monthly mean of half-hourly averages","Highest half- hourly average","Monthly mean of  daily averages","Highest daily average"]
["Jan",100,null,null,50,null,null,null,null,"A1","Jan"]
["Feb",{"$f":"+B10","v":100},null,null,{"$f":"+E10","v":50},null,null,null,null,null,"Feb"]
["Mar",{"$f":"+B11","v":100},null,null,{"$f":"+E11","v":50},null,null,null,null,null,"Mar",null,null,null,null,null,"Whole Installation table A5:G18:"]
["Apr",100,null,null,50,null,null,null,null,null,"Apr",null,null,null,null,null,"Mean: for 1/2 hourly and daily periods calculate mean of values across all operational combustion lines for the month"]
["May",100,null,null,50,null,null,null,null,null,"May"]
["Jun",100,null,null,50,null,null,null,null,null,"Jun"]
["Jul",100,null,null,50,null,null,null,null,null,"Jul",null,null,null,null,null,"Maximum: for 1/2 hourly and daily periods use the highest value across all operational combustion lines for the month"]
["Aug",100,null,null,50,null,null,null,null,null,"Aug"]
["Sep",100,null,null,50,null,null,null,null,null,"Sep"]
["Oct",100,null,null,50,null,null,null,null,null,"Oct"]
["Nov",100,null,null,50,null,null,null,null,null,"Nov"]
["Dec",100,null,null,50,null,null,null,null,null,"Dec"]
[null,null,null,null,null,null,null,null,null,null,"Annual",{"$f":"AVERAGE(L10:L21)","v":{"$error":"#DIV/0!"}},{"$f":"MAX(M10:M21)","v":0},{"$f":"AVERAGE(N10:N21)","v":{"$error":"#DIV/0!"}},{"$f":"MAX(O10:O21)","v":0}]
[]
[null,null,null,null,null,null,null,null,null,{"$f":"+A8","v":2024},"mg/Nm3","Monthly mean of half-hourly averages","Highest half- hourly average","Monthly mean of  daily averages","Highest daily average"]
[null,null,null,null,null,null,null,null,null,"A2","Jan"]
[null,null,null,null,null,null,null,null,null,null,"Feb"]
[null,null,null,null,null,null,null,null,null,null,"Mar"]
[null,null,null,null,null,null,null,null,null,null,"Apr"]
[null,null,null,null,null,null,null,null,null,null,"May"]
[null,null,null,null,null,null,null,null,null,null,"Jun"]
[null,null,null,null,null,null,null,null,null,null,"Jul"]
[null,null,null,null,null,null,null,null,null,null,"Aug"]
[null,null,null,null,null,null,null,null,null,null,"Sep"]
[null,null,null,null,null,null,null,null,null,null,"Oct"]
[null,null,null,null,null,null,null,null,null,null,"Nov"]
[null,null,null,null,null,null,null,null,null,null,"Dec"]
[null,null,null,null,null,null,null,null,null,null,"Annual",{"$f":"AVERAGE(L25:L36)","v":{"$error":"#DIV/0!"}},{"$f":"MAX(M25:M36)","v":0},{"$f":"AVERAGE(N25:N36)","v":{"$error":"#DIV/0!"}},{"$f":"MAX(O25:O36)","v":0}]
[]
[null,null,null,null,null,null,null,null,null,{"$f":"+A8","v":2024},"mg/Nm3","Monthly mean of half-hourly averages","Highest half- hourly average","Monthly mean of  daily averages","Highest daily average"]
[null,null,null,null,null,null,null,null,null,"A3","Jan"]
[null,null,null,null,null,null,null,null,null,null,"Feb"]
[null,null,null,null,null,null,null,null,null,null,"Mar"]
[null,null,null,null,null,null,null,null,null,null,"Apr"]
[null,null,null,null,null,null,null,null,null,null,"May"]
[null,null,null,null,null,null,null,null,null,null,"Jun"]
[null,null,null,null,null,null,null,null,null,null,"Jul"]
[null,null,null,null,null,null,null,null,null,null,"Aug"]
[null,null,null,null,null,null,null,null,null,null,"Sep"]
[null,null,null,null,null,null,null,null,null,null,"Oct"]
[null,null,null,null,null,null,null,null,null,null,"Nov"]
["Comments :",null,null,null,null,null,null,null,null,null,"Dec"]
[null,null,null,null,null,null,null,null,null,null,"Annual",{"$f":"AVERAGE(L40:L51)","v":{"$error":"#DIV/0!"}},{"$f":"MAX(M40:M51)","v":0},{"$f":"AVERAGE(N40:N51)","v":{"$error":"#DIV/0!"}},{"$f":"MAX(O40:O51)","v":0}]
[]
[null,null,null,null,null,null,null,null,null,{"$f":"+A8","v":2024},"mg/Nm3","Monthly mean of half-hourly averages","Highest half- hourly average","Monthly mean of  daily averages","Highest daily average"]
[null,null,null,null,null,null,null,null,null,"A4","Jan"]
[null,null,null,null,null,null,null,null,null,null,"Feb"]
[null,null,null,null,null,null,null,null,null,null,"Mar"]
[null,null,null,null,null,null,null,null,null,null,"Apr"]
[null,null,null,null,null,null,null,null,null,null,"May"]
[null,null,null,null,null,null,null,null,null,null,"Jun"]
[null,null,null,null,null,null,null,null,null,null,"Jul"]
[null,null,null,null,null,null,null,null,null,null,"Aug"]
[null,null,null,null,null,null,null,null,null,null,"Sep"]
[null,null,null,null,null,null,null,null,null,null,"Oct"]
[null,null,null,null,null,null,null,null,null,null,"Nov"]
[null,null,null,null,null,null,null,null,null,null,"Dec"]
[null,null,null,null,null,null,null,null,null,null,"Annual",{"$f":"AVERAGE(L55:L66)","v":{"$error":"#DIV/0!"}},{"$f":"MAX(M55:M66)","v":0},{"$f":"AVERAGE(N55:N66)","v":{"$error":"#DIV/0!"}},{"$f":"MAX(O55:O66)","v":0}]
[]
[null,null,null,null,null,null,null,null,null,{"$f":"+A8","v":2024},"mg/Nm3","Monthly mean of half-hourly averages","Highest half- hourly average","Monthly mean of  daily averages","Highest daily average"]
[null,null,null,null,null,null,null,null,null,"A5","Jan"]
[null,null,null,null,null,null,null,null,null,null,"Feb"]
[null,null,null,null,null,null,null,null,null,null,"Mar"]
[null,null,null,null,null,null,null,null,null,null,"Apr"]
[null,null,null,null,null,null,null,null,null,null,"May"]
[null,null,null,null,null,null,null,null,null,null,"Jun"]
[null,null,null,null,null,null,null,null,null,null,"Jul"]
[null,null,null,null,null,null,null,null,null,null,"Aug"]
[null,null,null,null,null,null,null,null,null,null,"Sep"]
[null,null,null,null,null,null,null,null,null,null,"Oct"]
[null,null,null,null,null,null,null,null,null,null,"Nov"]
[null,null,null,null,null,null,null,null,null,null,"Dec"]
[null,null,null,null,null,null,null,null,null,null,"Annual",{"$f":"AVERAGE(L70:L81)","v":{"$error":"#DIV/0!"}},{"$f":"MAX(M70:M81)","v":0},{"$f":"AVERAGE(N70:N81)","v":{"$error":"#DIV/0!"}},{"$f":"MAX(O70:O81)","v":0}]

{"sheet":"CO 95% 10 min","index":21,"n_rows":82,"n_cols":19,"rows_kept":82,"cut":false,"hidden":false,"merged":[[4,0,5,7],[6,18,10,20],[12,18,14,20],[15,18,18,20],[69,10,81,10],[7,1,7,4],[7,5,7,7],[7,10,7,16],[9,10,21,10],[24,10,36,10],[39,10,51,10],[50,0,50,7],[51,0,54,7],[54,10,66,10]]}
[{"$f":"+'Cover Page'!$B$29","v":"Annual Performance Report 2024"},null,null,null,{"$f":"+'Cover Page'!$B$33","v":"SUEZ R&R Wilton 11 EfW"}]
[]
["Monitoring of Carbon Monoxide (10-minute avg)",null,null,null,"Whole Installation",null,null,"See  Notes in Cell S3",null,{"$f":"+A3","v":"Monitoring of Carbon Monoxide (10-minute avg)"},null,null,null,null,"Per Combustion Line",null,"Notes:",null,"Notes:"]
[]
["Please complete this tab for your plant if you have 10-minute average CO ELVs; otherwise, leave it blank and complete the CO 0.5 hourly tab"]
[]
[null,null,null,null,null,null,null,null,null,null,null,null,null,null,null,null,null,null,"User to add logic to complete Whole installation, Table A5:H18. From the data in Per Combustion Line, Table K6:Q79, subject to No. of lines installed"]
[{"$f":"+'Cover Page'!C39","v":2024},"10-minute Reference Periods",null,null,null,"Daily Reference Periods"]
["mg/Nm3","95%ile 10-min avg CO ELV","Highest daily 95%ile 10-min average","Monthly mean of 10-min averages","Highest 10-min average","Daily CO ELV","Monthly mean of  daily averages","Highest daily average",null,null,{"$f":"+A8","v":2024},"mg/Nm3","Highest daily 95%ile 10-min average","Monthly mean of 10-min averages","Highest 10-min average","Monthly mean of  daily averages","Highest daily average"]
["Jan",150,{"$f":"AVERAGE(M10,M25,M40,M55,M70)","v":9.5},{"$f":"AVERAGE(N10,N25,N40,N55,N70)","v":5},{"$f":"MAX(O10,O25,O40,O55,O70)","v":234},50,{"$f":"AVERAGE(P10,P25,P40,P55,P70)","v":5},{"$f":"MAX(Q10,Q25,Q40,Q55,Q70)","v":8},null,null,"A1","Jan",8,4,234,4,5]
["Feb",{"$f":"+B10","v":150},{"$f":"AVERAGE(M11,M26,M41,M56,M71)","v":9},{"$f":"AVERAGE(N11,N26,N41,N56,N71)","v":5.5},{"$f":"MAX(O11,O26,O41,O56,O71)","v":120},{"$f":"+F10","v":50},{"$f":"AVERAGE(P11,P26,P41,P56,P71)","v":5.5},{"$f":"MAX(Q11,Q26,Q41,Q56,Q71)","v":10},null,null,null,"Feb",7,4,120,4,5]
["Mar",{"$f":"+B11","v":150},7.5,5.5,163,{"$f":"+F11","v":50},5.5,8,null,null,null,"Mar",5,4,163,4,5,null,"Whole Installation table A5:H18:"]
["Apr",150,9.5,11.5,173,50,11.5,8,null,null,null,"Apr",4,15,173,15,0,null,"Mean: for 10-min and daily periods use average of all operational combustion lines."]
["May",150,10,4,157,50,4,15,null,null,null,"May",2,2,2,2,2]
["Jun",150,11.5,5,125,50,5,11,null,null,null,"Jun",7,4,116,4,7]
["Jul",150,13,5,288,50,23.5,12,null,null,null,"Jul",13,4,87,41,5,null,"Maximum: for 10-min and daily periods use the highest of all operational combustion lines in any month."]
["Aug",150,12.5,5.5,1298,50,5.5,18,null,null,null,"Aug",13,5,1298,5,18]
["Sep",150,15.5,6.5,164,50,6.5,12,null,null,null,"Sep",15,5,116,5,11]
["Oct",150,12,5.5,196,50,5.5,9,null,null,null,"Oct",8,4,196,4,6]
["Nov",150,13,5,203,50,5,10,null,null,null,"Nov",11,5,203,5,10]
["Dec",150,20.5,7.5,257,50,7.5,13,null,null,null,"Dec",29,10,197,10,13]
[null,null,null,null,null,null,null,null,null,null,null,"Annual",{"$f":"AVERAGE(M10:M21)","v":10.166666666666666},null,{"$f":"MAX(O10:O21)","v":1298},{"$f":"AVERAGE(P10:P21)","v":8.5833333333333339},{"$f":"MAX(Q10:Q21)","v":18}]
[]
[null,null,null,null,null,null,null,null,null,null,{"$f":"+A8","v":2024},"mg/Nm3","Highest daily 95%ile 10-min average","Monthly mean of 10-min averages","Highest 10-min average","Monthly mean of  daily averages","Highest daily average"]
[null,null,null,null,null,null,null,null,null,null,"A2","Jan",11,6,90,6,8]
[null,null,null,null,null,null,null,null,null,null,null,"Feb",11,7,111,7,10]
[null,null,null,null,null,null,null,null,null,null,null,"Mar",10,7,90,7,8]
[null,null,null,null,null,null,null,null,null,null,null,"Apr",15,8,47,8,8]
[null,null,null,null,null,null,null,null,null,null,null,"May",18,6,157,6,15]
[null,null,null,null,null,null,null,null,null,null,null,"Jun",16,6,125,6,11]
[null,null,null,null,null,null,null,null,null,null,null,"Jul",13,6,288,6,12]
[null,null,null,null,null,null,null,null,null,null,null,"Aug",12,6,185,6,8]
[null,null,null,null,null,null,null,null,null,null,null,"Sep",16,8,164,8,12]
[null,null,null,null,null,null,null,null,null,null,null,"Oct",16,7,136,7,9]
[null,null,null,null,null,null,null,null,null,null,null,"Nov",15,5,153,5,8]
[null,null,null,null,null,null,null,null,null,null,null,"Dec",12,5,257,5,6]
[null,null,null,null,null,null,null,null,null,null,null,"Annual",{"$f":"AVERAGE(M25:M36)","v":13.75},null,{"$f":"MAX(O25:O36)","v":288},{"$f":"AVERAGE(P25:P36)","v":6.416666666666667},{"$f":"MAX(Q25:Q36)","v":15}]
[]
[null,null,null,null,null,null,null,null,null,null,{"$f":"+A8","v":2024},"mg/Nm3","Highest daily 95%ile 10-min average","Monthly mean of 10-min averages","Highest 10-min average","Monthly mean of  daily averages","Highest daily average"]
[null,null,null,null,null,null,null,null,null,null,"A3","Jan"]
[null,null,null,null,null,null,null,null,null,null,null,"Feb"]
[null,null,null,null,null,null,null,null,null,null,null,"Mar"]
[null,null,null,null,null,null,null,null,null,null,null,"Apr"]
[null,null,null,null,null,null,null,null,null,null,null,"May"]
[null,null,null,null,null,null,null,null,null,null,null,"Jun"]
[null,null,null,null,null,null,null,null,null,null,null,"Jul"]
[null,null,null,null,null,null,null,null,null,null,null,"Aug"]
[null,null,null,null,null,null,null,null,null,null,null,"Sep"]
[null,null,null,null,null,null,null,null,null,null,null,"Oct"]
[null,null,null,null,null,null,null,null,null,null,null,"Nov"]
["Comments :",null,null,null,null,null,null,null,null,null,null,"Dec"]
["Environment Agency explanatory note: The 10-minute average ELV is based on the “95th percentile”. In this case this means that 95% of the 10 minute averages in the relevant 24-hour period (i.e. 137) must be below 150 mg/Nm3, and 5% (i.e. 7) are allowed to be any value above 150 mg/Nm3. Whilst we expect operators to minimise CO emissions at all times, it is perfectly acceptable for the value of the maximum 10-minute average to be above 150 mg/Nm3, provided the 95th percentile ELV has been met for that period. ",null,null,null,null,null,null,null,null,null,null,"Annual",{"$f":"AVERAGE(M40:M51)","v":{"$error":"#DIV/0!"}},null,{"$f":"MAX(O40:O51)","v":0},{"$f":"AVERAGE(P40:P51)","v":{"$error":"#DIV/0!"}},{"$f":"MAX(Q40:Q51)","v":0}]
[]
[null,null,null,null,null,null,null,null,null,null,{"$f":"+A8","v":2024},"mg/Nm3","Highest daily 95%ile 10-min average","Monthly mean of 10-min averages","Highest 10-min average","Monthly mean of  daily averages","Highest daily average"]
[null,null,null,null,null,null,null,null,null,null,"A4","Jan"]
[null,null,null,null,null,null,null,null,null,null,null,"Feb"]
[null,null,null,null,null,null,null,null,null,null,null,"Mar"]
[null,null,null,null,null,null,null,null,null,null,null,"Apr"]
[null,null,null,null,null,null,null,null,null,null,null,"May"]
[null,null,null,null,null,null,null,null,null,null,null,"Jun"]
[null,null,null,null,null,null,null,null,null,null,null,"Jul"]
[null,null,null,null,null,null,null,null,null,null,null,"Aug"]
[null,null,null,null,null,null,null,null,null,null,null,"Sep"]
[null,null,null,null,null,null,null,null,null,null,null,"Oct"]
[null,null,null,null,null,null,null,null,null,null,null,"Nov"]
[null,null,null,null,null,null,null,null,null,null,null,"Dec"]
[null,null,null,null,null,null,null,null,null,null,null,"Annual",{"$f":"AVERAGE(M55:M66)","v":{"$error":"#DIV/0!"}},null,{"$f":"MAX(O55:O66)","v":0},{"$f":"AVERAGE(P55:P66)","v":{"$error":"#DIV/0!"}},{"$f":"MAX(Q55:Q66)","v":0}]
[]
[null,null,null,null,null,null,null,null,null,null,{"$f":"+A8","v":2024},"mg/Nm3","95%ile 10-min avg maximum","Monthly CO 10-min avg mean","10-min avg maximum","Monthly daily mean","Monthly daily maximum"]
[null,null,null,null,null,null,null,null,null,null,"A5","Jan"]
[null,null,null,null,null,null,null,null,null,null,null,"Feb"]
[null,null,null,null,null,null,null,null,null,null,null,"Mar"]
[null,null,null,null,null,null,null,null,null,null,null,"Apr"]
[null,null,null,null,null,null,null,null,null,null,null,"May"]
[null,null,null,null,null,null,null,null,null,null,null,"Jun"]
[null,null,null,null,null,null,null,null,null,null,null,"Jul"]
[null,null,null,null,null,null,null,null,null,null,null,"Aug"]
[null,null,null,null,null,null,null,null,null,null,null,"Sep"]
[null,null,null,null,null,null,null,null,null,null,null,"Oct"]
[null,null,null,null,null,null,null,null,null,null,null,"Nov"]
[null,null,null,null,null,null,null,null,null,null,null,"Dec"]
[null,null,null,null,null,null,null,null,null,null,null,"Annual",{"$f":"AVERAGE(M70:M81)","v":{"$error":"#DIV/0!"}},null,{"$f":"MAX(O70:O81)","v":0},{"$f":"AVERAGE(P70:P81)","v":{"$error":"#DIV/0!"}},{"$f":"MAX(Q70:Q81)","v":0}]

{"sheet":"NH3","index":22,"n_rows":79,"n_cols":17,"rows_kept":79,"cut":false,"hidden":false,"merged":[[3,16,7,18],[9,16,11,18],[12,16,15,18],[66,9,78,9],[4,1,4,3],[4,4,4,6],[4,9,4,14],[6,9,18,9],[21,9,33,9],[36,9,48,9],[47,0,47,6],[48,0,51,6],[51,9,63,9],[18,4,18,6]]}
[{"$f":"+'Cover Page'!$B$29","v":"Annual Performance Report 2024"},null,null,null,{"$f":"+'Cover Page'!$B$33","v":"SUEZ R&R Wilton 11 EfW"}]
[]
["Monitoring of Ammnonia emissions ",null,null,"Whole Installation",null,null,"See  Notes in Cell Q3",null,null,{"$f":"+A3","v":"Monitoring of Ammnonia emissions "},null,null,null,"Per Combustion Line",null,null,"Notes:"]
[null,null,null,null,null,null,null,null,null,null,null,null,null,null,null,null,"User to add logic to complete Whole installation, Table A5:G18. From the data in Per Combustion Line, Table J6:O79, subject to No. of lines installed"]
[{"$f":"+'Cover Page'!C39","v":2024},"1/2 Hourly Reference Periods",null,null,"Daily Reference Periods"]
["mg/Nm3","1/2 hourly NH3 ELV","Monthly mean of half-hourly averages","Highest half- hourly average","Daily NH3 ELV","Monthly mean of  daily averages","Highest daily average",null,null,{"$f":"+A5","v":2024},"mg/Nm3","Monthly mean of half-hourly averages","Highest half- hourly average","Monthly mean of  daily averages","Highest daily average"]
["Jan","None",{"$f":"AVERAGE(L7,L22,L37,L52,L67)","v":0.5},{"$f":"MAX(M7,M22,M37,M52,M67)","v":12},15,{"$f":"AVERAGE(N7,N22,N37,N52,N67)","v":0.5},{"$f":"MAX(O7,O22,O37,O52,O67)","v":2},null,null,"A1","Jan",1,12,1,2]
["Feb",{"$f":"+B7","v":"None"},{"$f":"AVERAGE(L8,L23,L38,L53,L68)","v":1},{"$f":"MAX(M8,M23,M38,M53,M68)","v":8},15,{"$f":"AVERAGE(N8,N23,N38,N53,N68)","v":1},{"$f":"MAX(O8,O23,O38,O53,O68)","v":3},null,null,null,"Feb",1,8,1,3]
["Mar",{"$f":"+B8","v":"None"},0.5,8,15,0.5,3,null,null,null,"Mar",1,8,1,3,null,"Whole Installation table A5:G18:"]
["Apr","None",1,11,15,1,3,null,null,null,"Apr",1,11,1,3,null,"Mean: for 1/2 hourly and daily periods calculate mean of values across all operational combustion lines for the month"]
["May","None",1,8,15,1,2,null,null,null,"May",1,8,1,2]
["Jun","None",0,3,15,0,1,null,null,null,"Jun",0,3,0,1]
["Jul","None",0.5,9,15,0.5,1,null,null,null,"Jul",1,3,1,1,null,"Maximum: for 1/2 hourly and daily periods use the highest value across all operational combustion lines for the month"]
["Aug","None",0.5,17,15,0.5,4,null,null,null,"Aug",1,17,1,4]
["Sep","None",1,25,15,1,6,null,null,null,"Sep",1,10,1,4]
["Oct","None",0.5,87,15,0.5,11,null,null,null,"Oct",1,87,1,11]
["Nov","None",1,4,15,1,3,null,null,null,"Nov",1,4,1,3]
["Dec","None",1,10,15,1,2,null,null,null,"Dec",1,7,1,2]
[null,null,null,null,null,null,null,null,null,null,"Annual",{"$f":"AVERAGE(L7:L18)","v":0.91666666666666663},{"$f":"MAX(M7:M18)","v":87},{"$f":"AVERAGE(N7:N18)","v":0.91666666666666663},{"$f":"MAX(O7:O18)","v":11}]
[]
[null,null,null,null,null,null,null,null,null,{"$f":"+A5","v":2024},"mg/Nm3","Monthly mean of half-hourly averages","Highest half- hourly average","Monthly mean of  daily averages","Highest daily average"]
[null,null,null,null,null,null,null,null,null,"A2","Jan",0,3,0,1]
[null,null,null,null,null,null,null,null,null,null,"Feb",1,8,1,2]
[null,null,null,null,null,null,null,null,null,null,"Mar",0,2,0,1]
[null,null,null,null,null,null,null,null,null,null,"Apr",1,11,1,3]
[null,null,null,null,null,null,null,null,null,null,"May",1,8,1,2]
[null,null,null,null,null,null,null,null,null,null,"Jun",0,3,0,1]
[null,null,null,null,null,null,null,null,null,null,"Jul",0,9,0,1]
[null,null,null,null,null,null,null,null,null,null,"Aug",0,7,0,2]
[null,null,null,null,null,null,null,null,null,null,"Sep",1,25,1,6]
[null,null,null,null,null,null,null,null,null,null,"Oct",0,3,0,3]
[null,null,null,null,null,null,null,null,null,null,"Nov",1,4,1,1]
[null,null,null,null,null,null,null,null,null,null,"Dec",1,10,1,2]
[null,null,null,null,null,null,null,null,null,null,"Annual",{"$f":"AVERAGE(L22:L33)","v":0.5},{"$f":"MAX(M22:M33)","v":25},{"$f":"AVERAGE(N22:N33)","v":0.5},{"$f":"MAX(O22:O33)","v":6}]
[]
[null,null,null,null,null,null,null,null,null,{"$f":"+A5","v":2024},"mg/Nm3","Monthly mean of half-hourly averages","Highest half- hourly average","Monthly mean of  daily averages","Highest daily average"]
[null,null,null,null,null,null,null,null,null,"A3","Jan"]
[null,null,null,null,null,null,null,null,null,null,"Feb"]
[null,null,null,null,null,null,null,null,null,null,"Mar"]
[null,null,null,null,null,null,null,null,null,null,"Apr"]
[null,null,null,null,null,null,null,null,null,null,"May"]
[null,null,null,null,null,null,null,null,null,null,"Jun"]
[null,null,null,null,null,null,null,null,null,null,"Jul"]
[null,null,null,null,null,null,null,null,null,null,"Aug"]
[null,null,null,null,null,null,null,null,null,null,"Sep"]
[null,null,null,null,null,null,null,null,null,null,"Oct"]
[null,null,null,null,null,null,null,null,null,null,"Nov"]
["Comments :",null,null,null,null,null,null,null,null,null,"Dec"]
["An indicated ELV value of zero in the table above means that no ammonia limit is/was set in the permit.  ",null,null,null,null,null,null,null,null,null,"Annual",{"$f":"AVERAGE(L37:L48)","v":{"$error":"#DIV/0!"}},{"$f":"MAX(M37:M48)","v":0},{"$f":"AVERAGE(N37:N48)","v":{"$error":"#DIV/0!"}},{"$f":"MAX(O37:O48)","v":0}]
[]
[null,null,null,null,null,null,null,null,null,{"$f":"+A5","v":2024},"mg/Nm3","Monthly mean of half-hourly averages","Highest half- hourly average","Monthly mean of  daily averages","Highest daily average"]
[null,null,null,null,null,null,null,null,null,"A4","Jan"]
[null,null,null,null,null,null,null,null,null,null,"Feb"]
[null,null,null,null,null,null,null,null,null,null,"Mar"]
[null,null,null,null,null,null,null,null,null,null,"Apr"]
[null,null,null,null,null,null,null,null,null,null,"May"]
[null,null,null,null,null,null,null,null,null,null,"Jun"]
[null,null,null,null,null,null,null,null,null,null,"Jul"]
[null,null,null,null,null,null,null,null,null,null,"Aug"]
[null,null,null,null,null,null,null,null,null,null,"Sep"]
[null,null,null,null,null,null,null,null,null,null,"Oct"]
[null,null,null,null,null,null,null,null,null,null,"Nov"]
[null,null,null,null,null,null,null,null,null,null,"Dec"]
[null,null,null,null,null,null,null,null,null,null,"Annual",{"$f":"AVERAGE(L52:L63)","v":{"$error":"#DIV/0!"}},{"$f":"MAX(M52:M63)","v":0},{"$f":"AVERAGE(N52:N63)","v":{"$error":"#DIV/0!"}},{"$f":"MAX(O52:O63)","v":0}]
[]
[null,null,null,null,null,null,null,null,null,{"$f":"+A5","v":2024},"mg/Nm3","Monthly mean of half-hourly averages","Highest half- hourly average","Monthly mean of  daily averages","Highest daily average"]
[null,null,null,null,null,null,null,null,null,"A5","Jan"]
[null,null,null,null,null,null,null,null,null,null,"Feb"]
[null,null,null,null,null,null,null,null,null,null,"Mar"]
[null,null,null,null,null,null,null,null,null,null,"Apr"]
[null,null,null,null,null,null,null,null,null,null,"May"]
[null,null,null,null,null,null,null,null,null,null,"Jun"]
[null,null,null,null,null,null,null,null,null,null,"Jul"]
[null,null,null,null,null,null,null,null,null,null,"Aug"]
[null,null,null,null,null,null,null,null,null,null,"Sep"]
[null,null,null,null,null,null,null,null,null,null,"Oct"]
[null,null,null,null,null,null,null,null,null,null,"Nov"]
[null,null,null,null,null,null,null,null,null,null,"Dec"]
[null,null,null,null,null,null,null,null,null,null,"Annual",{"$f":"AVERAGE(L67:L78)","v":{"$error":"#DIV/0!"}},{"$f":"MAX(M67:M78)","v":0},{"$f":"AVERAGE(N67:N78)","v":{"$error":"#DIV/0!"}},{"$f":"MAX(O67:O78)","v":0}]

{"sheet":"Template changes log","index":23,"n_rows":17,"n_cols":3,"rows_kept":17,"cut":false,"hidden":false,"merged":[]}
["Log of changes to template (Environment Agency use only)"]
[]
["Date","Description of change","New version number and date"]
["2024-01-16","Air (periodic) tab: corrected default O2 reference from 6 to 11% ","Version 23.5a (for incinerators) - 16/01/2024"]
["2024-09-23","Air (periodic) tab: corrected symbol for Thallium to Tl"]
["2024-09-23","Air (periodic) tab: removed last year's references to different emission limit values applying from 03/12/23 and updated all relevant ELVs"]
["2024-09-23","Tabs for continuously monitored pollutants (HCl, SO2 etc.): changed terminology in table headings to improve clarity"]
["2024-09-23","Tabs for continuously monitored pollutants (HCl, SO2 etc.): removed last year's references to different emission limit values applying from 03/12/23 and updated all relevant ELVs"]
["2024-09-23","Perf 1 tab: updated formula for water usage to report m3 rather than litres and corrected error with formula copying operator name"]
["2024-09-23","Operational Summary tab: table added on start-up's and shut-downs"]
["2024-09-23","Operational Summary tab: table added on dioxins and mercury protocols"]
["2024-09-23","Operational Summary tab: table added on AST, QAL 2 and calibration functions"]
["2024-09-23","CO2 N2O tab: various changes made to notes to reflect the fact that most plants should now have calibrated CEMS and flow meters + some have C14 samplers and more up to date industry data","Version 24a (for incinerators) - 23/09/24"]
["2024-01-08","CO2 N2O tab: Changed the N2O CO2 equivalence factor from 298 to 265 in line with recently updated government greenhouse gas figures: https://www.gov.uk/government/publications/greenhouse-gas-reporting-conversion-factors-2024"]
["2024-01-08","CO2 N2O tab: Added an additional requirement for municipal EfW plants to state the yearly average biogenic percentage of the waste by mass, and reference to a document which sets out a methodology for calculating NCV of waste from the results of C14 sampling."]
["2024-01-08","Permit Compliance tab: Two additional columns added + explanatory notes to the table entitled \"Summary of non-compliances under the permit\" to allow CCS scores to be stated where relevant. "]
["2024-01-08","Residue Quality tab: Note added explaining application of TOC and LOI limits and asking operators to report both metrics where measured. ","Version 24.1a (for incinerators) - 08/11/24"]